Workbook

Sheet Startseite
A2: Berechnung der Sanierungsdauer | L2: Excel-Version | M2: =INFO("version") -> 16.0
A3: Mikrobiologische Sanierung durch Injektion von Elektronenakzeptoren
A5: Version 1.0

Sheet Heterogenität (hidden)
A3: Heterogenität (Gini-Koeffizient) | C3: Mittel | D3: 0.5
A4: Korrekturfaktor | D4: =1/(1-(1-2.45068336614863*(Schadstoffbelastung!$I$4*Schadstoffbelastung!$I$5)^-0.457209937280527)*$D$3) -> 1.64286305
F6: Sondierung | G6: Gini-Koeffizient

Sheet Schadstoffbelastung (hidden)
A2: Schadstoff | C2: MB + 2 s [mg/m² OS] | D2: Inventar [kg] | F2: Geometrie des Schadensherdes | H2: Einheit | I2: Wert | K2: Schadstoffstatistik | M2: Einheit | N2: AKW | O2: =Stoffdatenbank!A36 -> n-Alkane | P2: Oxigenate | S2: Mittl. Konz. (GW) [µg/L] | T2: Mittl. Konz. (GW) [µmol/L] | U2: Ci [µg/L] | V2: Grenzkonz. Boden [mg/kg] | W2: Mittlere Konz. Boden [mg/kg] | X2: Residualphase [mg/kg]
R3: FALSE
A4: Benzol | B4: B | D4: =IF($R$3,'Schadstoffkonzentrationen Boden'!V26,'Schadstoffkonzentrationen GW'!V8) -> 0.2603258824 | F4: Mittlere Länge (Schadensherd) | H4: m | I4: 10 | K4: Minimum (Einzelkonzentrationen) | M4: mg/kg OS | N4: =IF($R$3,'Schadstoffkonzentrationen Boden'!$W$83,"") ->  | O4: =IF($R$3,'Schadstoffkonzentrationen Boden'!$W$91,"") ->  | P4: =IF($R$3,'Schadstoffkonzentrationen Boden'!$W$96,"") ->  | S4: ='Schadstoffkonzentrationen GW'!Y8 -> 16.88235294 | T4: =IFERROR(S4/Stoffdatenbank!R19,0) -> 0.2164404223 | U4: =Stoffdatenbank!N19*1000*(Schadstoffbelastung!T4/(Schadstoffbelastung!T$21)) -> 3465.509401 | V4: =U4/1000*Bodencharakterisierung!$D$9*Stoffdatenbank!J19 -> 2.772407521 | W4: =IFERROR(D4*1000/$I$12,0) -> 0.1718322656 | X4: =MAX(0,W4-V4) -> 0
A5: Toluol | B5: T | D5: =IF($R$3,'Schadstoffkonzentrationen Boden'!V27,'Schadstoffkonzentrationen GW'!V9) -> 1.116375 | F5: Mittlere Breite (Schadensherd) | H5: m | I5: 20 | K5: Maximum (Einzelkonzentrationen) | M5: mg/kg OS | N5: =IF($R$3,'Schadstoffkonzentrationen Boden'!$X$83,"") ->  | O5: =IF($R$3,'Schadstoffkonzentrationen Boden'!$X$91,"") ->  | P5: =IF($R$3,'Schadstoffkonzentrationen Boden'!$X$96,"") ->  | S5: ='Schadstoffkonzentrationen GW'!Y9 -> 22.9 | T5: =IFERROR(S5/Stoffdatenbank!R20,0) -> 0.2489130435 | U5: =Stoffdatenbank!N20*1000*(Schadstoffbelastung!T5/(Schadstoffbelastung!T$21)) -> 1170.863967 | V5: =U5/1000*Bodencharakterisierung!$D$9*Stoffdatenbank!J20 -> 3.512591901 | W5: =IFERROR(D5*1000/$I$12,0) -> 0.7368811881 | X5: 0
A6: Ethylbenzol | B6: ETBE | D6: =IF($R$3,'Schadstoffkonzentrationen Boden'!V28,'Schadstoffkonzentrationen GW'!V10) -> 5.489385 | F6: Fläche der Belastung | H6: m² | I6: =I4*I5 -> 200 | K6: Median (Einzelkonzentrationen) | M6: mg/kg OS | N6: =IF($R$3,'Schadstoffkonzentrationen Boden'!$Y$83,"") ->  | O6: =IF($R$3,'Schadstoffkonzentrationen Boden'!$Y$91,"") ->  | P6: =IF($R$3,'Schadstoffkonzentrationen Boden'!$Y$96,"") ->  | S6: ='Schadstoffkonzentrationen GW'!Y10 -> 32.3 | T6: =IFERROR(S6/Stoffdatenbank!R21,0) -> 0.3047169811 | U6: =Stoffdatenbank!N21*1000*(Schadstoffbelastung!T6/(Schadstoffbelastung!T$21)) -> 468.5986367 | V6: =U6/1000*Bodencharakterisierung!$D$9*Stoffdatenbank!J21 -> 5.154585003 | W6: 3.623356436 | X6: 0
A7: o-Xylol | B7: oX | D7: =IF($R$3,'Schadstoffkonzentrationen Boden'!V29,'Schadstoffkonzentrationen GW'!V11) -> 1.82598675 | F7: Oberkante der Belastung | H7: m u. GOK | I7: 5 | K7: Mittlere Konzentration (arithm.) (Einzelkonz.) | M7: mg/kg OS | N7: =IF($R$3,'Schadstoffkonzentrationen Boden'!$Z$83,"") ->  | O7: =IF($R$3,'Schadstoffkonzentrationen Boden'!$Z$91,"") ->  | P7: =IF($R$3,'Schadstoffkonzentrationen Boden'!$Z$96,"") ->  | S7: ='Schadstoffkonzentrationen GW'!Y11 -> 14.15 | T7: =IFERROR(S7/Stoffdatenbank!R22,0) -> 0.133490566 | U7: =Stoffdatenbank!N22*1000*(Schadstoffbelastung!T7/(Schadstoffbelastung!T$21)) -> 217.3594477 | V7: =U7/1000*Bodencharakterisierung!$D$9*Stoffdatenbank!J22 -> 1.804083416 | W7: 1.205271782 | X7: 0
A8: m-Xylol | B8: mX | D8: =IF($R$3,'Schadstoffkonzentrationen Boden'!V30,'Schadstoffkonzentrationen GW'!V12) -> 1727.299962 | F8: Unterkante der Belastung | H8: m u. GOK | I8: 10 | K8: Standardabweichung (Einzelkonzentrationen) | M8: mg/kg OS | N8: =IF($R$3,'Schadstoffkonzentrationen Boden'!$AA$83,"") ->  | O8: =IF($R$3,'Schadstoffkonzentrationen Boden'!$AA$91,"") ->  | P8: =IF($R$3,'Schadstoffkonzentrationen Boden'!$AA$96,"") ->  | S8: ='Schadstoffkonzentrationen GW'!Y12 -> 11381.03684 | T8: =IFERROR(S8/Stoffdatenbank!R23,0) -> 107.3682721 | U8: =Stoffdatenbank!N23*1000*(Schadstoffbelastung!T8/(Schadstoffbelastung!T$21)) -> 168997.6457 | V8: =U8/1000*Bodencharakterisierung!$D$9*Stoffdatenbank!J23 -> 1656.176928 | W8: 1140.131988 | X8: 0
A9: p-Xylol | B9: pX | D9: =IF($R$3,'Schadstoffkonzentrationen Boden'!V31,'Schadstoffkonzentrationen GW'!V13) -> 0.799986 | F9: Mittlere Mächtigkeit (Schadensherd) | H9: m | I9: =I8-I7 -> 5 | K9: MW + 2 s (Einzelkonzentrationen) | M9: mg/kg OS | N9: =IF($R$3,'Schadstoffkonzentrationen Boden'!$AB$83,"") ->  | O9: =IF($R$3,'Schadstoffkonzentrationen Boden'!$AB$91,"") ->  | P9: =IF($R$3,'Schadstoffkonzentrationen Boden'!$AB$96,"") ->  | S9: ='Schadstoffkonzentrationen GW'!Y13 -> 5.855555556 | T9: =IFERROR(S9/Stoffdatenbank!R24,0) -> 0.05524109015 | U9: =Stoffdatenbank!N24*1000*(Schadstoffbelastung!T9/(Schadstoffbelastung!T$21)) -> 99.94191769 | V9: =U9/1000*Bodencharakterisierung!$D$9*Stoffdatenbank!J24 -> 0.8794888757 | W9: 0.5280435644 | X9: 0
A10: n-Propylbenzol | B10: nPB | D10: =IF($R$3,'Schadstoffkonzentrationen Boden'!V32,'Schadstoffkonzentrationen GW'!V14) -> 2.365826471 | F10: Bodenlagerungsdichte | H10: kg/L | I10: =Bodencharakterisierung!D11 -> 1.515 | K10: Schadstoffinventar (mittelwertbezogen) | M10: kg | N10: =IF($R$3,'Schadstoffkonzentrationen Boden'!$AC$83,"") ->  | O10: =IF($R$3,'Schadstoffkonzentrationen Boden'!$AC$91,"") ->  | P10: =IF($R$3,'Schadstoffkonzentrationen Boden'!$AC$96,"") ->  | S10: ='Schadstoffkonzentrationen GW'!Y14 -> 15.58823529 | T10: =IFERROR(S10/Stoffdatenbank!R25,0) -> 0.1299019608 | U10: =Stoffdatenbank!N25*1000*(Schadstoffbelastung!T10/(Schadstoffbelastung!T$21)) -> 70.50540298 | V10: =U10/1000*Bodencharakterisierung!$D$9*Stoffdatenbank!J25 -> 0.6909529492 | W10: 1.561601631 | X10: 0.8706486816
A11: Isopropylbenzol | B11: iPB | D11: =IF($R$3,'Schadstoffkonzentrationen Boden'!V33,'Schadstoffkonzentrationen GW'!V15) -> 1.6635225 | F11: Volumen kontaminierter Boden | H11: m³ | I11: =I9*I6 -> 1000 | K11: Schadstoffinventar (flächengewichtet) | M11: kg | N11: =D21 -> 1764.126704 | O11: =D28 -> 394.810089 | P11: =D32 -> 16.69305 | S11: ='Schadstoffkonzentrationen GW'!Y15 -> 11.41666667 | T11: =IFERROR(S11/Stoffdatenbank!R26,0) -> 0.09513888889 | U11: =Stoffdatenbank!N26*1000*(Schadstoffbelastung!T11/(Schadstoffbelastung!T$21)) -> 43.03120638 | V11: =U11/1000*Bodencharakterisierung!$D$9*Stoffdatenbank!J26 -> 0.40449334 | W11: 1.098034653 | X11: 0.6935413135
A12: o-Ethyltoluol | B12: oET | D12: =IF($R$3,'Schadstoffkonzentrationen Boden'!V34,'Schadstoffkonzentrationen GW'!V16) -> 2.02802265 | H12: t | I12: =I11*I10 -> 1515 | K12: Residualsättigung | M12: mg/kg | N12: =X21 -> 11.92647272 | O12: =X32 -> 0 | P12: =X28 -> 165.3290697 | S12: ='Schadstoffkonzentrationen GW'!Y16 -> 16.49 | T12: =IFERROR(S12/Stoffdatenbank!R27,0) -> 0.1374166667 | U12: =Stoffdatenbank!N27*1000*(Schadstoffbelastung!T12/(Schadstoffbelastung!T$21)) -> 115.6053147 | V12: =U12/1000*Bodencharakterisierung!$D$9*Stoffdatenbank!J27 -> 0.9132819865 | W12: 1.338628812 | X12: 0.4253468254
A13: m-Ethyltoluol | B13: oET | D13: =IF($R$3,'Schadstoffkonzentrationen Boden'!V35,'Schadstoffkonzentrationen GW'!V17) -> 0.35532 | F13: Grundwasserflurabstand | H13: m u. GOK | I13: 5 | S13: ='Schadstoffkonzentrationen GW'!Y17 -> 3 | T13: =IFERROR(S13/Stoffdatenbank!R28,0) -> 0.025 | U13: =Stoffdatenbank!N28*1000*(Schadstoffbelastung!T13/(Schadstoffbelastung!T$21)) -> 21.93649236 | V13: =U13/1000*Bodencharakterisierung!$D$9*Stoffdatenbank!J28 -> 0.1667173419 | W13: 0.2345346535 | X13: 0.06781731152
A14: p-Ethyltoluol | B14: pET | D14: =IF($R$3,'Schadstoffkonzentrationen Boden'!V36,'Schadstoffkonzentrationen GW'!V18) -> 1.011066 | S14: ='Schadstoffkonzentrationen GW'!Y18 -> 7.24 | T14: =IFERROR(S14/Stoffdatenbank!R29,0) -> 0.06033333333 | U14: =Stoffdatenbank!N29*1000*(Schadstoffbelastung!T14/(Schadstoffbelastung!T$21)) -> 51.84852043 | V14: =U14/1000*Bodencharakterisierung!$D$9*Stoffdatenbank!J29 -> 0.4666366839 | W14: 0.667370297 | X14: 0.2007336131
A15: 1,2-Diethylbenzol | B15: 12DEB | D15: =IF($R$3,'Schadstoffkonzentrationen Boden'!V37,'Schadstoffkonzentrationen GW'!V19) -> 2.63829375 | F15: =IF(I7<I13,"Da nur die gesättigte Bodenzone betrachtet wird, darf die Oberkante der Belastung nicht über dem Grundwasserspiegel liegen","") ->  | S15: ='Schadstoffkonzentrationen GW'!Y19 -> 33.375 | T15: =IFERROR(S15/Stoffdatenbank!R30,0) -> 0.2490671642 | U15: =Stoffdatenbank!N30*1000*(Schadstoffbelastung!T15/(Schadstoffbelastung!T$21)) -> 54.07333553 | V15: =U15/1000*Bodencharakterisierung!$D$9*Stoffdatenbank!J30 -> 0.2703666777 | W15: 1.74144802 | X15: 1.471081342
A16: 1,3-Diethylbenzol | B16: 13DEB | D16: =IF($R$3,'Schadstoffkonzentrationen Boden'!V38,'Schadstoffkonzentrationen GW'!V20) -> 0.8578851176 | S16: ='Schadstoffkonzentrationen GW'!Y20 -> 12.81764706 | T16: =IFERROR(S16/Stoffdatenbank!R31,0) -> 0.09565408253 | U16: =Stoffdatenbank!N31*1000*(Schadstoffbelastung!T16/(Schadstoffbelastung!T$21)) -> 23.36268304 | V16: =U16/1000*Bodencharakterisierung!$D$9*Stoffdatenbank!J31 -> 0.09812326876 | W16: 0.5662608037 | X16: 0.468137535
A17: 1,4-Diethylbenzol | B17: 14DEB | D17: =IF($R$3,'Schadstoffkonzentrationen Boden'!V39,'Schadstoffkonzentrationen GW'!V21) -> 4.634865 | S17: ='Schadstoffkonzentrationen GW'!Y21 -> 63.5 | T17: =IFERROR(S17/Stoffdatenbank!R32,0) -> 0.473880597 | U17: =Stoffdatenbank!N32*1000*(Schadstoffbelastung!T17/(Schadstoffbelastung!T$21)) -> 107.1678154 | V17: =U17/1000*Bodencharakterisierung!$D$9*Stoffdatenbank!J32 -> 0.492971951 | W17: 3.059316832 | X17: 2.566344881
A18: 1,2,3-Trimethylbenzol | B18: 123TMB | D18: =IF($R$3,'Schadstoffkonzentrationen Boden'!V40,'Schadstoffkonzentrationen GW'!V22) -> 2.136766125 | S18: ='Schadstoffkonzentrationen GW'!Y22 -> 20.995 | T18: =IFERROR(S18/Stoffdatenbank!R33,0) -> 0.1749583333 | U18: =Stoffdatenbank!N33*1000*(Schadstoffbelastung!T18/(Schadstoffbelastung!T$21)) -> 118.7001694 | V18: =U18/1000*Bodencharakterisierung!$D$9*Stoffdatenbank!J33 -> 0.7715511008 | W18: 1.410406683 | X18: 0.6388555823
A19: 1,2,4-Trimethylbenzol | B19: 124TMB | D19: =IF($R$3,'Schadstoffkonzentrationen Boden'!V41,'Schadstoffkonzentrationen GW'!V23) -> 4.736495417 | S19: ='Schadstoffkonzentrationen GW'!Y23 -> 46.53888889 | T19: =IFERROR(S19/Stoffdatenbank!R34,0) -> 0.3878240741 | U19: =Stoffdatenbank!N34*1000*(Schadstoffbelastung!T19/(Schadstoffbelastung!T$21)) -> 210.4948414 | V19: =U19/1000*Bodencharakterisierung!$D$9*Stoffdatenbank!J34 -> 1.368216469 | W19: 3.126399615 | X19: 1.758183146
A20: 1,3,5-Trimethylbenzol | B20: 135TMB | D20: =IF($R$3,'Schadstoffkonzentrationen Boden'!V42,'Schadstoffkonzentrationen GW'!V24) -> 4.90662075 | S20: ='Schadstoffkonzentrationen GW'!Y24 -> 46.81666667 | T20: =IFERROR(S20/Stoffdatenbank!R35,0) -> 0.3901388889 | U20: =Stoffdatenbank!N35*1000*(Schadstoffbelastung!T20/(Schadstoffbelastung!T$21)) -> 70.58374232 | V20: =U20/1000*Bodencharakterisierung!$D$9*Stoffdatenbank!J35 -> 0.4729110735 | W20: 3.238693564 | X20: 2.765782491
A21: AKW | D21: =SUM(D4:D20) -> 1764.126704 | S21: =SUM(S4:S20) -> 11750.90286 | T21: =SUM(T4:T20) -> 110.5463882 | W21: =SUM(W4:W20) -> 1164.440069 | X21: =SUM(X4:X20) -> 11.92647272
A22: =Stoffdatenbank!$A$37 -> n-Pentan | B22: nC5 | D22: =IF($R$3,'Schadstoffkonzentrationen Boden'!V46,'Schadstoffkonzentrationen GW'!V28) -> 1.59735 | S22: ='Schadstoffkonzentrationen GW'!Y28 -> 2 | T22: =IFERROR(S22/Stoffdatenbank!R37,0) -> 0.02777777778 | U22: =Stoffdatenbank!N37*1000*(Schadstoffbelastung!T22/(Schadstoffbelastung!T$28)) -> 1693.639125 | V22: =U22/1000*Bodencharakterisierung!$D$9*Stoffdatenbank!J37 -> 14.73466039 | W22: =IFERROR(D22*1000/$I$12,0) -> 1.054356436 | X22: =MAX(0,W22-V22) -> 0
A23: =Stoffdatenbank!$A$38 -> n-Hexan | B23: nC6 | D23: =IF($R$3,'Schadstoffkonzentrationen Boden'!V47,'Schadstoffkonzentrationen GW'!V29) -> 10.54548 | S23: ='Schadstoffkonzentrationen GW'!Y29 -> 4 | T23: =IFERROR(S23/Stoffdatenbank!R38,0) -> 0.04651162791 | U23: =Stoffdatenbank!N38*1000*(Schadstoffbelastung!T23/(Schadstoffbelastung!T$28)) -> 708.9652153 | V23: =U23/1000*Bodencharakterisierung!$D$9*Stoffdatenbank!J38 -> 14.46289039 | W23: 6.960712871 | X23: =MAX(0,W23-V23) -> 0
A24: =Stoffdatenbank!$A$39 -> n-Heptan | B24: nC7 | D24: =IF($R$3,'Schadstoffkonzentrationen Boden'!V48,'Schadstoffkonzentrationen GW'!V30) -> 183.72684 | S24: ='Schadstoffkonzentrationen GW'!Y30 -> 44 | T24: =IFERROR(S24/Stoffdatenbank!R39,0) -> 0.44 | U24: =Stoffdatenbank!N39*1000*(Schadstoffbelastung!T24/(Schadstoffbelastung!T$28)) -> 1475.498406 | V24: =U24/1000*Bodencharakterisierung!$D$9*Stoffdatenbank!J39 -> 77.46366631 | W24: 121.2718416 | X24: 43.80817527
A25: =Stoffdatenbank!$A$40 -> n-Octan | B25: nC8 | D25: =IF($R$3,'Schadstoffkonzentrationen Boden'!V49,'Schadstoffkonzentrationen GW'!V31) -> 198.89082 | S25: ='Schadstoffkonzentrationen GW'!Y31 -> 6 | T25: =IFERROR(S25/Stoffdatenbank!R40,0) -> 0.05263157895 | U25: =Stoffdatenbank!N40*1000*(Schadstoffbelastung!T25/(Schadstoffbelastung!T$28)) -> 56.15750784 | V25: =U25/1000*Bodencharakterisierung!$D$9*Stoffdatenbank!J40 -> 9.760174863 | W25: 131.2810693 | X25: 121.5208944
A26: =Stoffdatenbank!$A$41 -> n-Nonan | B26: nC9 | D26: =IF($R$3,'Schadstoffkonzentrationen Boden'!V50,'Schadstoffkonzentrationen GW'!V32) -> 0.0198 | S26: ='Schadstoffkonzentrationen GW'!Y32 -> 6 | T26: =IFERROR(S26/Stoffdatenbank!R41,0) -> 0.046875 | U26: =Stoffdatenbank!N41*1000*(Schadstoffbelastung!T26/(Schadstoffbelastung!T$28)) -> 8.574048072 | V26: =U26/1000*Bodencharakterisierung!$D$9*Stoffdatenbank!J41 -> 2.361292839 | W26: 0.01306930693 | X26: 0
A27: =Stoffdatenbank!$A$42 -> n-Decan | B27: nC10 | D27: =IF($R$3,'Schadstoffkonzentrationen Boden'!V51,'Schadstoffkonzentrationen GW'!V33) -> 0.029799 | G27: Berechnung der Schadstoffinventare mit Daten aus | S27: ='Schadstoffkonzentrationen GW'!Y33 -> 6 | T27: =IFERROR(S27/Stoffdatenbank!R42,0) -> 0.04225352113 | U27: =Stoffdatenbank!N42*1000*(Schadstoffbelastung!T27/(Schadstoffbelastung!T$28)) -> 3.220299745 | V27: =U27/1000*Bodencharakterisierung!$D$9*Stoffdatenbank!J42 -> 7.045371783 | W27: 0.01966930693 | X27: 0
A28: =Stoffdatenbank!$A$36 -> n-Alkane | D28: =SUM(D22:D27) -> 394.810089 | S28: ='Schadstoffkonzentrationen GW'!Y34 -> 0 | T28: =SUM(T22:T27) -> 0.6560495058 | W28: =SUM(W22:W27) -> 260.6007188 | X28: =SUM(X22:X27) -> 165.3290697
A29: MTBE (Methyl-tert-butylether) | D29: =IF($R$3,'Schadstoffkonzentrationen Boden'!V54,'Schadstoffkonzentrationen GW'!V36) -> 16.50825 | S29: ='Schadstoffkonzentrationen GW'!Y36 -> 5002.5 | T29: =IFERROR(S29/Stoffdatenbank!R44,0) -> 56.7511458 | U29: =Stoffdatenbank!N44*1000*(Schadstoffbelastung!T29/Schadstoffbelastung!T$32) -> 50765414 | V29: =U29/1000*Bodencharakterisierung!$D$9*Stoffdatenbank!J44 -> 5584.195541 | W29: =IFERROR(D29*1000/$I$12,0) -> 10.89653465 | X29: =MAX(0,W29-V29) -> 0
A30: ETBE (Ethyl-tert-butylether) | D30: =IF($R$3,'Schadstoffkonzentrationen Boden'!V55,'Schadstoffkonzentrationen GW'!V37) -> 0.1815 | S30: ='Schadstoffkonzentrationen GW'!Y37 -> 55 | T30: =IFERROR(S30/Stoffdatenbank!R45,0) -> 0.5382931995 | U30: =Stoffdatenbank!N45*1000*(Schadstoffbelastung!T30/Schadstoffbelastung!T$21) -> 58432.64986 | V30: =U30/1000*Bodencharakterisierung!$D$9*Stoffdatenbank!J45 -> 5.258938487 | W30: 0.1198019802 | X30: 0
A31: TBA (tert-Butylalkohol) | D31: =IF($R$3,'Schadstoffkonzentrationen Boden'!V56,'Schadstoffkonzentrationen GW'!V38) -> 0.0033 | S31: ='Schadstoffkonzentrationen GW'!Y38 -> 1 | T31: =IFERROR(S31/Stoffdatenbank!R46,0) -> 0.01349134395 | U31: =Stoffdatenbank!N46*1000*(Schadstoffbelastung!T31/Schadstoffbelastung!T$21) -> 6102.118837 | V31: =U31/1000*Bodencharakterisierung!$D$9*Stoffdatenbank!J46 -> 2.25778397 | W31: 0.002178217822 | X31: 0
A32: Oxigenate | D32: =SUM(D29:D31) -> 16.69305 | S32: =SUM(S29:S31) -> 5058.5 | T32: =SUM(T29:T31) -> 57.30293034 | W32: =SUM(W29:W31) -> 11.01851485 | X32: =SUM(X29:X31) -> 0

Sheet Schadstoffkonzentrationen Boden (hidden)
A5: Die Grafiken enthalten größensortierte Daten aus dem unteren Teil des Eingabeblattes (analysierte Konzentrationen) und dienen ausschließlich der Visualisierung der Werteverteilung
A21: Mittlere Schadstoffmasse im gesättigten Boden (Einheitsfläche) (MB) [mg/m²]
A22: Sondierung Nr. | B22: 1 | C22: 2 | D22: 3 | E22: 4 | F22: 5 | G22: 6 | H22: 7 | I22: 8 | J22: 9 | K22: 10 | L22: 11 | M22: 12 | N22: 13 | O22: 14 | P22: 15 | Q22: 16 | R22: 17 | S22: 18 | T22: 19 | U22: 20 | V22: Summe [kg] | W22: Mittlere Flächen-Konz. (MB) [mg/m²] | X22: Standard-abweich. (MB) [mg/m²] | Y22: MB + 2 s [mg/m²] | Z22: Inventar (MB-bezogen) [kg]
A23: Bezeichnung
A24: Flächenrepräsentanz [m²] | B24: 5 | C24: 5 | D24: 5 | E24: 5 | F24: 5 | G24: 5 | H24: 5 | I24: 5 | J24: 5 | K24: 5 | L24: 5 | M24: 5 | N24: 5 | O24: 5 | P24: 5 | Q24: 5 | R24: 10 | S24: 10 | T24: 50 | U24: 50 | V24: =IF(SUM(B24:U24)=Schadstoffbelastung!$I$6,SUM(B24:U24),"Σ ≠ "&Schadstoffbelastung!$I$6&"!") -> 200
A25: (Mono)aromatische Kohlenwasserstoffe (AKW)
A26: Benzol | M26: 80 | N26: 24 | P26: 18 | R26: 18 | S26: 18 | T26: 18 | U26: 90 | V26: =SUMPRODUCT($B$24:$U$24,$B26:$U26)*0.000001 -> 0.00637 | W26: =IFERROR(AVERAGE($B26:$U26),0) -> 38 | X26: =IF(SUM($B26:$U26)>0,_xlfn.STDEV.S(B26:U26),"") -> 32.31098884 | Y26: =IF(SUM($B26:$U26)>0,W26+X26*2,"") -> 102.6219777 | Z26: =Y26*$V$24/1000/1000 -> 0.02052439554
A27: Toluol | L27: 2.4 | M27: 14000 | N27: 610 | O27: 4.7 | P27: 2500 | R27: 2500 | S27: 2500 | T27: 2500 | U27: 10 | V27: =SUMPRODUCT($B$24:$U$24,$B27:$U27)*0.000001 -> 0.2610855 | W27: =IFERROR(AVERAGE($B27:$U27),0) -> 2736.344444 | X27: =IF(SUM($B27:$U27)>0,_xlfn.STDEV.S(B27:U27),"") -> 4387.254261 | Y27: =IF(SUM($B27:$U27)>0,W27+X27*2,"") -> 11510.85297 | Z27: =Y27*$V$24/1000/1000 -> 2.302170593
A28: Ethylbenzol | L28: 95 | M28: 39000 | N28: 21000 | O28: 120 | P28: 33000 | Q28: 140 | R28: 33000 | S28: 33000 | T28: 33000 | U28: 1 | V28: =SUMPRODUCT($B$24:$U$24,$B28:$U28)*0.000001 -> 2.776825 | W28: 19235.6 | X28: 17055.33462 | Y28: 53346.26925 | Z28: 10.66925385
A29: o-Xylol | L29: 68 | M29: 24000 | N29: 7400 | O29: 55 | P29: 20000 | Q29: 37 | R29: 20000 | S29: 20000 | T29: 20000 | U29: 1000 | V29: =SUMPRODUCT($B$24:$U$24,$B29:$U29)*0.000001 -> 1.7078 | W29: 11256 | X29: 10353.70925 | Y29: 31963.41851 | Z29: 6.392683702
A30: m-Xylol | L30: 4.9 | M30: 2800 | N30: 1100 | O30: 6.8 | P30: 2700 | R30: 2700 | S30: 2700 | T30: 2700 | U30: 2700 | V30: 0.3570585 | W30: 1934.633333 | X30: 1215.257948 | Y30: 4365.149229 | Z30: 0.8730298458
A31: p-Xylol | M31: 130 | N31: 38 | P31: 300 | Q31: 9.4 | R31: 300 | S31: 300 | T31: 300 | U31: 2700 | V31: 0.158387 | W31: 509.675 | X31: 893.6508998 | Y31: 2296.9768 | Z31: 0.4593953599
A32: n-Propylbenzol | M32: 61 | N32: 19 | P32: 130 | R32: 130 | S32: 130 | T32: 130 | U32: 2700 | V32: 0.14515 | W32: 471.4285714 | X32: 983.6977614 | Y32: 2438.824094 | Z32: 0.4877648188
A33: Isopropylbenzol | M33: 290 | N33: 99 | P33: 500 | Q33: 4.5 | R33: 500 | S33: 500 | T33: 500 | U33: 1400 | V33: 0.1094675 | W33: 474.1875 | X33: 423.4367837 | Y33: 1321.061067 | Z33: 0.2642122135
A34: o-Ethyltoluol | L34: 2.6 | M34: 910 | N34: 230 | O34: 2.2 | P34: 1400 | Q34: 12 | R34: 1400 | S34: 1400 | T34: 1400 | U34: 1400 | V34: 0.180784 | W34: 815.68 | X34: 668.9807318 | Y34: 2153.641464 | Z34: 0.4307282927
A35: m-Ethyltoluol | L35: 2.6 | M35: 910 | N35: 230 | O35: 2.2 | P35: 1400 | Q35: 12 | R35: 1400 | S35: 1400 | T35: 1400 | U35: 1400 | V35: 0.180784 | W35: 815.68 | X35: 668.9807318 | Y35: 2153.641464 | Z35: 0.4307282927
A36: p-Ethyltoluol | P36: 5.4 | R36: 5.4 | S36: 5.4 | T36: 5.4 | U36: 1400 | V36: 0.070405 | W36: 284.32 | X36: 623.6840803 | Y36: 1531.688161 | Z36: 0.3063376321
A37: 1,2-Diethylbenzol | M37: 13 | P37: 37 | R37: 37 | S37: 37 | T37: 37 | U37: 710 | V37: 0.03834 | W37: 145.1666667 | X37: 276.8771689 | Y37: 698.9210045 | Z37: 0.1397842009
A38: 1,3-Diethylbenzol | M38: 39 | N38: 7.9 | P38: 120 | R38: 120 | S38: 120 | T38: 120 | U38: 710 | V38: 0.0447345 | W38: 176.7 | X38: 239.6953553 | Y38: 656.0907105 | Z38: 0.1312181421
A39: 1,4-Diethylbenzol | M39: 370 | N39: 96 | P39: 710 | Q39: 13 | R39: 710 | S39: 710 | T39: 710 | U39: 710 | V39: 0.091145 | W39: 503.625 | X39: 301.8230028 | Y39: 1107.271006 | Z39: 0.2214542011
A40: 1,2,3-Trimethylbenzol | L40: 3 | M40: 920 | N40: 300 | O40: 2.7 | P40: 1700 | Q40: 76 | R40: 1700 | S40: 1700 | T40: 1700 | U40: 710 | V40: 0.1695085 | W40: 881.17 | X40: 763.1576654 | Y40: 2407.485331 | Z40: 0.4814970662
A41: 1,2,4-Trimethylbenzol | M41: 230 | N41: 67 | P41: 530 | Q41: 2.7 | R41: 530 | S41: 530 | T41: 530 | U41: 710 | V41: 0.0767485 | W41: 391.2125 | X41: 256.5481099 | Y41: 904.3087197 | Z41: 0.1808617439
A42: 1,3,5-Trimethylbenzol | M42: 230 | N42: 67 | P42: 530 | Q42: 2.7 | R42: 530 | S42: 530 | T42: 530 | U42: 710 | V42: 0.0767485 | W42: 391.2125 | X42: 256.5481099 | Y42: 904.3087197 | Z42: 0.1808617439
A43: BTEX | B43: =IF(SUM(B26:B31)>0,SUM(B26:B31),"") ->  | C43: =IF(SUM(C26:C31)>0,SUM(C26:C31),"") ->  | L43: 170.3 | M43: 80010 | N43: 30172 | O43: 186.5 | P43: 58518 | Q43: 186.4 | R43: 58518 | S43: 58518 | T43: 58518 | U43: =IF(SUM(U26:U31)>0,SUM(U26:U31),"") -> 6501 | V43: =SUM(V26:V31) -> 5.267526 | W43: 35129.82 | X43: 31110.36622 | Y43: =IF(SUM($B43:$U43)>0,W43+X43*2,"") -> 97350.55244 | Z43: =SUM(Z26:Z31) -> 20.71705775
A44: AKW | B44: =IF(SUM(B26:B42)>0,SUM(B26:B42),"") ->  | C44: =IF(SUM(C26:C42)>0,SUM(C26:C42),"") ->  | L44: 178.5 | M44: 83983 | N44: 31287.9 | O44: 193.6 | P44: 65580.4 | Q44: 309.3 | R44: 65580.4 | S44: 65580.4 | T44: 65580.4 | U44: 19061 | V44: =SUM(V26:V42) -> 6.4513415 | W44: 39733.49 | X44: 33017.19567 | Y44: 105767.8813 | Z44: =SUM(Z26:Z42) -> 23.97250609
A45: =Stoffdatenbank!$A$36 -> n-Alkane | B45: =Stoffdatenbank!$A$36 -> n-Alkane | C45: =Stoffdatenbank!$A$36 -> n-Alkane | D45: =Stoffdatenbank!$A$36 -> n-Alkane | E45: =Stoffdatenbank!$A$36 -> n-Alkane | F45: =Stoffdatenbank!$A$36 -> n-Alkane | G45: =Stoffdatenbank!$A$36 -> n-Alkane | H45: =Stoffdatenbank!$A$36 -> n-Alkane | I45: =Stoffdatenbank!$A$36 -> n-Alkane | J45: =Stoffdatenbank!$A$36 -> n-Alkane | K45: =Stoffdatenbank!$A$36 -> n-Alkane | L45: =Stoffdatenbank!$A$36 -> n-Alkane | M45: =Stoffdatenbank!$A$36 -> n-Alkane | N45: =Stoffdatenbank!$A$36 -> n-Alkane | O45: =Stoffdatenbank!$A$36 -> n-Alkane | P45: =Stoffdatenbank!$A$36 -> n-Alkane | Q45: =Stoffdatenbank!$A$36 -> n-Alkane | R45: =Stoffdatenbank!$A$36 -> n-Alkane | S45: =Stoffdatenbank!$A$36 -> n-Alkane | T45: =Stoffdatenbank!$A$36 -> n-Alkane | U45: =Stoffdatenbank!$A$36 -> n-Alkane | V45: =Stoffdatenbank!$A$36 -> n-Alkane
A46: =Stoffdatenbank!$A$37 -> n-Pentan | O46: 4000 | S46: 3 | V46: =SUMPRODUCT($B$24:$U$24,$B46:$U46)*0.000001 -> 0.02003 | W46: 2001.5 | X46: =IF(SUM($B46:$U46)>0,_xlfn.STDEV.S(B46:U46),"") -> 2826.305804 | Y46: =IF(SUM($B46:$U46)>0,W46+X46*2,"") -> 7654.111609 | Z46: =Y46*$V$24/1000/1000 -> 1.530822322
A47: =Stoffdatenbank!$A$38 -> n-Hexan | O47: 4504 | S47: 3 | V47: 0.02255 | W47: 2253.5 | X47: 3182.687622 | Y47: 8618.875244 | Z47: 1.723775049
A48: =Stoffdatenbank!$A$39 -> n-Heptan | O48: 334 | S48: 3 | V48: 0.0017 | W48: 168.5 | X48: 234.0523446 | Y48: 636.6046891 | Z48: 0.1273209378
A49: =Stoffdatenbank!$A$40 -> n-Octan | O49: 3435 | S49: 3 | V49: 0.017205 | W49: 1719 | X49: 2426.790473 | Y49: 6572.580946 | Z49: =Y49*$V$24/1000/1000 -> 1.314516189
A50: =Stoffdatenbank!$A$41 -> n-Nonan | O50: 22 | S50: 3 | V50: 0.00014 | W50: 12.5 | X50: 13.43502884 | Y50: 39.37005769 | Z50: 0.007874011537
A51: =Stoffdatenbank!$A$42 -> n-Decan | O51: 24 | S51: 3 | V51: 0.00015 | W51: 13.5 | X51: 14.8492424 | Y51: 43.19848481 | Z51: 0.008639696962
A52: =Stoffdatenbank!$A$36 -> n-Alkane | B52: =IF(SUM(B46:B51)>0,SUM(B46:B51),"") ->  | C52: =IF(SUM(C46:C51)>0,SUM(C46:C51),"") ->  | O52: 12319 | S52: 18 | V52: =SUM(V46:V50) -> 0.061625 | W52: 6168.5 | X52: 8698.120515 | Y52: 23564.74103 | Z52: =SUM(Z46:Z51) -> 4.712948206
A53: Oxigenate
A54: MTBE (Methyl-tert-butylether) | P54: 30000 | Q54: 4 | S54: 3 | V54: =SUMPRODUCT($B$24:$U$24,$B54:$U54)*0.000001 -> 0.15005 | W54: 10002.33333 | X54: =IF(SUM($B54:$U54)>0,_xlfn.STDEV.S(B54:U54),"") -> 17318.48736 | Y54: =IF(SUM($B54:$U54)>0,W54+X54*2,"") -> 44639.30805 | Z54: =Y54*$V$24/1000/1000 -> 8.927861609
A55: ETBE (Ethyl-tert-butylether) | Q55: 44 | S55: 3 | V55: 0.00025 | W55: 23.5 | X55: =IF(SUM($B55:$U55)>0,_xlfn.STDEV.S(B55:U55),"") -> 28.99137803 | Y55: =IF(SUM($B55:$U55)>0,W55+X55*2,"") -> 81.48275606 | Z55: =Y55*$V$24/1000/1000 -> 0.01629655121
A56: TBA (tert-Butylalkohol) | Q56: 4 | S56: 3 | V56: 5e-05 | W56: 3.5 | X56: =IF(SUM($B56:$U56)>0,_xlfn.STDEV.S(B56:U56),"") -> 0.7071067812 | Y56: =IF(SUM($B56:$U56)>0,W56+X56*2,"") -> 4.914213562 | Z56: =Y56*$V$24/1000/1000 -> 0.0009828427125
A57: Oxigenate | B57: =IF(SUM(B54:B56)>0,SUM(B54:B56),"") ->  | C57: =IF(SUM(C54:C56)>0,SUM(C54:C56),"") ->  | P57: 30000 | Q57: 52 | S57: 9 | V57: =SUM(V54:V56) -> 0.15035 | W57: 10020.33333 | X57: =IF(SUM($B57:$U57)>0,_xlfn.STDEV.S(B57:U57),"") -> 17302.91225 | Y57: =IF(SUM($B57:$U57)>0,W57+X57*2,"") -> 44626.15783 | Z57: =SUM(Z54:Z56) -> 8.945141003
A60: Analysierte Schadstoffkonzentrationen im gesättigten Boden [mg/kg]
A61: Sondierung | B61: 1 | C61: 2 | D61: 3 | E61: 4 | F61: 5 | G61: 6 | H61: 7 | I61: 8 | J61: 9 | K61: 10 | L61: 11 | M61: 12 | N61: 13 | O61: 14 | P61: 15 | Q61: 16 | R61: 17 | S61: 18 | T61: 19 | U61: 20 | W61: Minimum [mg/kg OS] | X61: Maximum [mg/kg OS] | Y61: Median [mg/kg OS] | Z61: Mittlere Konz. (MW) [mg/kg OS] | AA61: Standard-abweich. [mg/kg OS] | AB61: MW + 2 s [mg/kg OS] | AC61: Inventar (Mittelwert-bezogen) [kg]
A63: Flächenrepräsentanz [m²] | B63: 10 | C63: 10 | D63: 10 | E63: 10 | F63: 10 | G63: 10 | K63: 10 | L63: 10 | M63: 10 | N63: 110 | V63: =IF(SUM(B63:U63)=Schadstoffbelastung!$I$6,"","Σ ≠ "&Schadstoffbelastung!$I$6&"!") -> 
A64: (Mono)aromatische Kohlenwasserstoffe (AKW) | Y64: =IFERROR(MEDIAN($B64:$U64),"") ->  | Z64: =IF(SUM($B64:$U64)>0,AVERAGE($B64:$U64),"") ->  | AA64: =IF(SUM($B64:$U64)>0,_xlfn.STDEV.S(B64:U64),"") ->  | AB64: =IF(SUM($B64:$U64)>0,Z64+AA64*2,"") -> 
A65: Benzol | K65: 2 | L65: 3 | M65: 4 | N65: 5 | O65: 0 | P65: 95 | Q65: 24 | R65: 0 | S65: 18 | W65: =MIN(B65:U65) -> 0 | X65: =MAX($B65:$U65) -> 95 | Y65: 4 | Z65: =IF(SUM($B65:$U65)>0,AVERAGE($B65:$U65),"") -> 16.77777778 | AA65: 30.5072851 | AB65: 77.79234799 | AC65: =AB65*Schadstoffbelastung!$I$12/1000 -> 117.8554072
A66: Toluol | K66: 2 | L66: 3 | M66: 4 | N66: 5 | O66: 2.4 | P66: 62 | Q66: 610 | R66: 4.7 | S66: 62 | W66: =MIN(B66:U66) -> 2 | X66: 610 | Y66: 4.7 | Z66: 83.9 | AA66: 198.908572 | AB66: 481.7171439 | AC66: =AB66*Schadstoffbelastung!$I$12/1000 -> 729.801473
A67: Ethylbenzol | K67: 2 | L67: 3 | M67: 4 | N67: 5 | O67: 95 | P67: 62 | Q67: 62 | R67: 120 | S67: 62 | W67: 2 | X67: 120 | Y67: 62 | Z67: 46.11111111 | AA67: 44.54616831 | AB67: 135.2034477 | AC67: =AB67*Schadstoffbelastung!$I$12/1000 -> 204.8332233
A68: o-Xylol | K68: 2 | L68: 3 | M68: 4 | N68: 5 | O68: 62 | P68: 62 | Q68: 62 | R68: 55 | S68: 62 | W68: 2 | X68: 62 | Y68: 55 | Z68: 35.22222222 | AA68: 30.18599749 | AB68: 95.5942172 | AC68: =AB68*Schadstoffbelastung!$I$12/1000 -> 144.8252391
A69: m-Xylol | K69: 2 | L69: 3 | M69: 4 | N69: 5 | O69: 4.9 | P69: 62 | Q69: 62 | R69: 6.8 | S69: 62 | T69: 62 | U69: 62 | W69: 2 | X69: 62 | Y69: 6.8 | Z69: 30.51818182 | AA69: 30.16503997 | AB69: 90.84826176 | AC69: =AB69*Schadstoffbelastung!$I$12/1000 -> 137.6351166
A70: p-Xylol | K70: 2 | L70: 3 | M70: 4 | N70: 5 | O70: 0 | P70: 62 | Q70: 62 | R70: 0 | S70: 62 | T70: 62 | U70: 62 | W70: 0 | X70: 62 | Y70: 5 | Z70: 29.45454545 | AA70: 31.19411366 | AB70: 91.84277278 | AC70: =AB70*Schadstoffbelastung!$I$12/1000 -> 139.1418008
A71: n-Propylbenzol | K71: 2 | L71: 3 | M71: 4 | N71: 5 | O71: 0 | P71: 62 | Q71: 62 | R71: 0 | S71: 62 | T71: 62 | U71: 62 | W71: 0 | X71: 62 | Y71: 5 | Z71: 29.45454545 | AA71: 31.19411366 | AB71: 91.84277278 | AC71: =AB71*Schadstoffbelastung!$I$12/1000 -> 139.1418008
A72: Isopropylbenzol | K72: 2 | L72: 3 | M72: 4 | N72: 5 | O72: 0 | P72: 62 | Q72: 62 | R72: 0 | S72: 62 | T72: 62 | U72: 62 | W72: 0 | X72: 62 | Y72: 5 | Z72: 29.45454545 | AA72: 31.19411366 | AB72: 91.84277278 | AC72: =AB72*Schadstoffbelastung!$I$12/1000 -> 139.1418008
A73: o-Ethyltoluol | K73: 2 | L73: 3 | M73: 4 | N73: 5 | O73: 2.6 | P73: 62 | Q73: 62 | R73: 2.2 | S73: 62 | T73: 62 | U73: 62 | W73: 2 | X73: 62 | Y73: 5 | Z73: 29.89090909 | AA73: 30.75299838 | AB73: 91.39690584 | AC73: =AB73*Schadstoffbelastung!$I$12/1000 -> 138.4663124
A74: m-Ethyltoluol | K74: 2 | L74: 3 | M74: 4 | N74: 5 | O74: 2.6 | P74: 62 | Q74: 62 | R74: 2.2 | S74: 62 | T74: 62 | U74: 62 | W74: 2 | X74: 62 | Y74: 5 | Z74: 29.89090909 | AA74: 30.75299838 | AB74: 91.39690584 | AC74: =AB74*Schadstoffbelastung!$I$12/1000 -> 138.4663124
A75: p-Ethyltoluol | K75: 2 | L75: 3 | M75: 4 | N75: 5 | O75: 0 | P75: 62 | Q75: 62 | R75: 0 | S75: 62 | W75: 0 | X75: 62 | Y75: 4 | Z75: 22.22222222 | AA75: 29.87799264 | AB75: 81.97820751 | AC75: =AB75*Schadstoffbelastung!$I$12/1000 -> 124.1969844
A76: 1,2-Diethylbenzol | K76: 2 | L76: 3 | M76: 4 | N76: 5 | O76: 0 | P76: 62 | Q76: 62 | R76: 0 | S76: 62 | W76: 0 | X76: 62 | Y76: 4 | Z76: 22.22222222 | AA76: 29.87799264 | AB76: 81.97820751 | AC76: =AB76*Schadstoffbelastung!$I$12/1000 -> 124.1969844
A77: 1,3-Diethylbenzol | K77: 2 | L77: 3 | M77: 4 | N77: 5 | O77: 0 | P77: 39 | Q77: 62 | R77: 0 | S77: 62 | W77: 0 | X77: 62 | Y77: 4 | Z77: 19.66666667 | AA77: 26.88401012 | AB77: 73.4346869 | AC77: =AB77*Schadstoffbelastung!$I$12/1000 -> 111.2535507
A78: 1,4-Diethylbenzol | K78: 2 | L78: 3 | M78: 4 | N78: 5 | O78: 0 | P78: 370 | Q78: 62 | R78: 0 | S78: 62 | W78: 0 | X78: 370 | Y78: 4 | Z78: 56.44444444 | AA78: 120.3994509 | AB78: 297.2433463 | AC78: =AB78*Schadstoffbelastung!$I$12/1000 -> 450.3236696
A79: 1,2,3-Trimethylbenzol | K79: 2 | L79: 3 | M79: 4 | N79: 5 | O79: 3.2 | P79: 920 | Q79: 62 | R79: 2.7 | S79: 62 | W79: 2 | X79: 920 | Y79: 4 | Z79: 118.2111111 | AA79: 301.7438336 | AB79: 721.6987783 | AC79: =AB79*Schadstoffbelastung!$I$12/1000 -> 1093.373649
A80: 1,2,4-Trimethylbenzol | K80: 2 | L80: 3 | M80: 4 | N80: 5 | O80: 0 | P80: 230 | Q80: 67 | R80: 0 | S80: 530 | W80: 0 | X80: 530 | Y80: 4 | Z80: 93.44444444 | AA80: 180.1930292 | AB80: 453.8305029 | AC80: =AB80*Schadstoffbelastung!$I$12/1000 -> 687.5532119
A81: 1,3,5-Trimethylbenzol | K81: 2 | L81: 3 | M81: 4 | N81: 5 | O81: 0 | P81: 230 | Q81: 67 | R81: 0 | S81: 530 | W81: 0 | X81: 530 | Y81: 4 | Z81: 93.44444444 | AA81: 180.1930292 | AB81: 453.8305029 | AC81: =AB81*Schadstoffbelastung!$I$12/1000 -> 687.5532119
A82: BTEX | B82: =IF(SUM(B65:B70)>0,SUM(B65:B70),"") ->  | C82: =IF(SUM(C65:C70)>0,SUM(C65:C70),"") ->  | K82: 12 | L82: 18 | M82: 24 | N82: 30 | O82: 164.3 | P82: 405 | Q82: 882 | R82: 186.5 | S82: =IF(SUM(S65:S70)>0,SUM(S65:S70),"") -> 328 | T82: 124 | U82: 124 | W82: 12 | X82: 882 | Y82: 124 | Z82: 208.8909091 | AA82: 257.6851197 | AB82: 724.2611485 | AC82: =AB82*Schadstoffbelastung!$I$12/1000 -> 1097.25564
A83: AKW | B83: =IF(SUM(B65:B81)>0,SUM(B65:B81),"") ->  | C83: =IF(SUM(C65:C81)>0,SUM(C65:C81),"") ->  | K83: 34 | L83: 51 | M83: 68 | N83: 85 | O83: 172.7 | P83: 2566 | Q83: 1574 | R83: 193.6 | S83: 1946 | T83: =IF(SUM(T65:T81)>0,SUM(T65:T81),"") -> 372 | U83: 372 | W83: 34 | X83: 2566 | Y83: 193.6 | Z83: 675.8454545 | AA83: 904.6540989 | AB83: 2485.153652 | AC83: =AB83*Schadstoffbelastung!$I$12/1000 -> 3765.007783
A84: =Stoffdatenbank!$A$36 -> n-Alkane | B84: =Stoffdatenbank!$A$36 -> n-Alkane | C84: =Stoffdatenbank!$A$36 -> n-Alkane | D84: =Stoffdatenbank!$A$36 -> n-Alkane | E84: =Stoffdatenbank!$A$36 -> n-Alkane | F84: =Stoffdatenbank!$A$36 -> n-Alkane | G84: =Stoffdatenbank!$A$36 -> n-Alkane | H84: =Stoffdatenbank!$A$36 -> n-Alkane | I84: =Stoffdatenbank!$A$36 -> n-Alkane | J84: =Stoffdatenbank!$A$36 -> n-Alkane | K84: =Stoffdatenbank!$A$36 -> n-Alkane | L84: =Stoffdatenbank!$A$36 -> n-Alkane | M84: =Stoffdatenbank!$A$36 -> n-Alkane | N84: =Stoffdatenbank!$A$36 -> n-Alkane | O84: =Stoffdatenbank!$A$36 -> n-Alkane | P84: =Stoffdatenbank!$A$36 -> n-Alkane | Q84: =Stoffdatenbank!$A$36 -> n-Alkane | R84: =Stoffdatenbank!$A$36 -> n-Alkane | S84: =Stoffdatenbank!$A$36 -> n-Alkane | T84: =Stoffdatenbank!$A$36 -> n-Alkane | U84: =Stoffdatenbank!$A$36 -> n-Alkane
A85: =Stoffdatenbank!$A$37 -> n-Pentan | B85: 1 | C85: 2 | D85: 3 | E85: 4 | F85: 5 | G85: 6 | H85: 7 | I85: 8 | J85: 9 | K85: 2 | L85: 3 | M85: 4 | N85: 5 | O85: 22 | P85: 33 | Q85: 2 | R85: 34 | S85: 3 | W85: =MIN(B85:U85) -> 1 | X85: =MAX($B85:$U85) -> 34 | Y85: =IFERROR(MEDIAN($B85:$U85),"") -> 4.5 | Z85: 8.5 | AA85: 10.23402629 | AB85: 28.96805258 | AC85: =AB85*Schadstoffbelastung!$I$12/1000 -> 43.88659966
A86: =Stoffdatenbank!$A$38 -> n-Hexan | K86: 2 | L86: 3 | M86: 4 | N86: 5 | W86: =MIN(B86:U86) -> 2 | X86: 5 | Y86: 3.5 | Z86: 3.5 | AA86: 1.290994449 | AB86: 6.081988897 | AC86: =AB86*Schadstoffbelastung!$I$12/1000 -> 9.21421318
A87: =Stoffdatenbank!$A$39 -> n-Heptan | G87: 1 | K87: 2 | L87: 3 | M87: 4 | N87: 5 | W87: 1 | X87: 5 | Y87: 3 | Z87: 3 | AA87: 1.58113883 | AB87: 6.16227766 | AC87: =AB87*Schadstoffbelastung!$I$12/1000 -> 9.335850655
A88: =Stoffdatenbank!$A$40 -> n-Octan | K88: 2 | L88: 3 | M88: 4 | N88: 5 | W88: 2 | X88: 5 | Y88: 3.5 | Z88: 3.5 | AA88: 1.290994449 | AB88: 6.081988897 | AC88: =AB88*Schadstoffbelastung!$I$12/1000 -> 9.21421318
A89: =Stoffdatenbank!$A$41 -> n-Nonan | K89: 2 | L89: 3 | M89: 4 | N89: 5 | W89: 2 | X89: 5 | Y89: 3.5 | Z89: 3.5 | AA89: 1.290994449 | AB89: 6.081988897 | AC89: =AB89*Schadstoffbelastung!$I$12/1000 -> 9.21421318
A90: =Stoffdatenbank!$A$42 -> n-Decan | K90: 2 | L90: 3 | M90: 4 | N90: 5 | W90: 2 | X90: 5 | Y90: 3.5 | Z90: 3.5 | AA90: 1.290994449 | AB90: 6.081988897 | AC90: =AB90*Schadstoffbelastung!$I$12/1000 -> 9.21421318
A91: =Stoffdatenbank!$A$36 -> n-Alkane | B91: =IF(SUM(B85:B90)>0,SUM(B85:B90),"") -> 1 | C91: =IF(SUM(C85:C90)>0,SUM(C85:C90),"") -> 2 | D91: 3 | E91: 4 | F91: 5 | G91: 7 | H91: 7 | I91: 8 | J91: 9 | K91: 12 | L91: 18 | M91: 24 | N91: 30 | O91: 22 | P91: 33 | Q91: 2 | R91: 34 | S91: 3 | W91: =MIN(B91:U91) -> 1 | X91: 34 | Y91: 7.5 | Z91: 12.44444444 | AA91: 11.36673279 | AB91: 35.17791003 | AC91: =AB91*Schadstoffbelastung!$I$12/1000 -> 53.2945337
A92: Oxigenate
A93: MTBE (Methyl-tert-butylether) | K93: 2 | L93: 3 | M93: 4 | N93: 5 | W93: =MIN(B93:U93) -> 2 | X93: =MAX($B93:$U93) -> 5 | Y93: =IFERROR(MEDIAN($B93:$U93),"") -> 3.5 | Z93: 3.5 | AA93: 1.290994449 | AB93: 6.081988897 | AC93: =AB93*Schadstoffbelastung!$I$12/1000 -> 9.21421318
A94: ETBE (Ethyl-tert-butylether) | K94: 2 | L94: 3 | M94: 4 | N94: 5 | W94: =MIN(B94:U94) -> 2 | X94: =MAX($B94:$U94) -> 5 | Y94: =IFERROR(MEDIAN($B94:$U94),"") -> 3.5 | Z94: 3.5 | AA94: 1.290994449 | AB94: 6.081988897 | AC94: =AB94*Schadstoffbelastung!$I$12/1000 -> 9.21421318
A95: TBA (tert-Butylalkohol) | K95: 2 | L95: 3 | M95: 4 | N95: 5 | W95: =MIN(B95:U95) -> 2 | X95: =MAX($B95:$U95) -> 5 | Y95: =IFERROR(MEDIAN($B95:$U95),"") -> 3.5 | Z95: 3.5 | AA95: 1.290994449 | AB95: 6.081988897 | AC95: =AB95*Schadstoffbelastung!$I$12/1000 -> 9.21421318
A96: Oxigenate | B96: =IF(SUM(B93:B95)>0,SUM(B93:B95),"") ->  | C96: =IF(SUM(C93:C95)>0,SUM(C93:C95),"") ->  | K96: 6 | L96: 9 | M96: 12 | N96: 15 | W96: =MIN(B96:U96) -> 6 | X96: =MAX($B96:$U96) -> 15 | Y96: =IFERROR(MEDIAN($B96:$U96),"") -> 10.5 | Z96: 10.5 | AA96: 3.872983346 | AB96: 18.24596669 | AC96: =AB96*Schadstoffbelastung!$I$12/1000 -> 27.64263954

Sheet Tabelle1 (hidden)
B2: =VALUE(B3) ->  | C2: =VALUE(C3) ->  | K2: 11 | L2: 10 | M2: 9 | N2: 8 | O2: 7 | P2: 1 | Q2: 3 | R2: 6 | S2: 2 | T2: 4 | U2: 4
A3: AKW | B3: =IF(SUM('Schadstoffkonzentrationen Boden'!B65:B81)>0,_xlfn.RANK.EQ('Schadstoffkonzentrationen Boden'!B83,'Schadstoffkonzentrationen Boden'!$B$83:$U$83),"") ->  | C3: =IF(SUM('Schadstoffkonzentrationen Boden'!C65:C81)>0,_xlfn.RANK.EQ('Schadstoffkonzentrationen Boden'!C83,'Schadstoffkonzentrationen Boden'!$B$83:$U$83),"") ->  | D3: =IF(SUM('Schadstoffkonzentrationen Boden'!D65:D81)>0,_xlfn.RANK.EQ('Schadstoffkonzentrationen Boden'!D83,'Schadstoffkonzentrationen Boden'!$B$83:$U$83),"") ->  | E3: =IF(SUM('Schadstoffkonzentrationen Boden'!E65:E81)>0,_xlfn.RANK.EQ('Schadstoffkonzentrationen Boden'!E83,'Schadstoffkonzentrationen Boden'!$B$83:$U$83),"") ->  | F3: =IF(SUM('Schadstoffkonzentrationen Boden'!F65:F81)>0,_xlfn.RANK.EQ('Schadstoffkonzentrationen Boden'!F83,'Schadstoffkonzentrationen Boden'!$B$83:$U$83),"") ->  | G3: =IF(SUM('Schadstoffkonzentrationen Boden'!G65:G81)>0,_xlfn.RANK.EQ('Schadstoffkonzentrationen Boden'!G83,'Schadstoffkonzentrationen Boden'!$B$83:$U$83),"") ->  | H3: =IF(SUM('Schadstoffkonzentrationen Boden'!H65:H81)>0,_xlfn.RANK.EQ('Schadstoffkonzentrationen Boden'!H83,'Schadstoffkonzentrationen Boden'!$B$83:$U$83),"") ->  | I3: =IF(SUM('Schadstoffkonzentrationen Boden'!I65:I81)>0,_xlfn.RANK.EQ('Schadstoffkonzentrationen Boden'!I83,'Schadstoffkonzentrationen Boden'!$B$83:$U$83),"") ->  | J3: =IF(SUM('Schadstoffkonzentrationen Boden'!J65:J81)>0,_xlfn.RANK.EQ('Schadstoffkonzentrationen Boden'!J83,'Schadstoffkonzentrationen Boden'!$B$83:$U$83),"") ->  | K3: =IF(SUM('Schadstoffkonzentrationen Boden'!K65:K81)>0,_xlfn.RANK.EQ('Schadstoffkonzentrationen Boden'!K83,'Schadstoffkonzentrationen Boden'!$B$83:$U$83),"") -> 11 | L3: =IF(SUM('Schadstoffkonzentrationen Boden'!L65:L81)>0,_xlfn.RANK.EQ('Schadstoffkonzentrationen Boden'!L83,'Schadstoffkonzentrationen Boden'!$B$83:$U$83),"") -> 10 | M3: =IF(SUM('Schadstoffkonzentrationen Boden'!M65:M81)>0,_xlfn.RANK.EQ('Schadstoffkonzentrationen Boden'!M83,'Schadstoffkonzentrationen Boden'!$B$83:$U$83),"") -> 9 | N3: =IF(SUM('Schadstoffkonzentrationen Boden'!N65:N81)>0,_xlfn.RANK.EQ('Schadstoffkonzentrationen Boden'!N83,'Schadstoffkonzentrationen Boden'!$B$83:$U$83),"") -> 8 | O3: =IF(SUM('Schadstoffkonzentrationen Boden'!O65:O81)>0,_xlfn.RANK.EQ('Schadstoffkonzentrationen Boden'!O83,'Schadstoffkonzentrationen Boden'!$B$83:$U$83),"") -> 7 | P3: =IF(SUM('Schadstoffkonzentrationen Boden'!P65:P81)>0,_xlfn.RANK.EQ('Schadstoffkonzentrationen Boden'!P83,'Schadstoffkonzentrationen Boden'!$B$83:$U$83),"") -> 1 | Q3: =IF(SUM('Schadstoffkonzentrationen Boden'!Q65:Q81)>0,_xlfn.RANK.EQ('Schadstoffkonzentrationen Boden'!Q83,'Schadstoffkonzentrationen Boden'!$B$83:$U$83),"") -> 3 | R3: =IF(SUM('Schadstoffkonzentrationen Boden'!R65:R81)>0,_xlfn.RANK.EQ('Schadstoffkonzentrationen Boden'!R83,'Schadstoffkonzentrationen Boden'!$B$83:$U$83),"") -> 6 | S3: =IF(SUM('Schadstoffkonzentrationen Boden'!S65:S81)>0,_xlfn.RANK.EQ('Schadstoffkonzentrationen Boden'!S83,'Schadstoffkonzentrationen Boden'!$B$83:$U$83),"") -> 2 | T3: =IF(SUM('Schadstoffkonzentrationen Boden'!T65:T81)>0,_xlfn.RANK.EQ('Schadstoffkonzentrationen Boden'!T83,'Schadstoffkonzentrationen Boden'!$B$83:$U$83),"") -> 4 | U3: =IF(SUM('Schadstoffkonzentrationen Boden'!U65:U81)>0,_xlfn.RANK.EQ('Schadstoffkonzentrationen Boden'!U83,'Schadstoffkonzentrationen Boden'!$B$83:$U$83),"") -> 4
B4: =IF('Schadstoffkonzentrationen Boden'!B83>0,'Schadstoffkonzentrationen Boden'!B83,"") ->  | C4: =IF('Schadstoffkonzentrationen Boden'!C83>0,'Schadstoffkonzentrationen Boden'!C83,"") ->  | D4: =IF('Schadstoffkonzentrationen Boden'!D83>0,'Schadstoffkonzentrationen Boden'!D83,"") ->  | E4: =IF('Schadstoffkonzentrationen Boden'!E83>0,'Schadstoffkonzentrationen Boden'!E83,"") ->  | F4: =IF('Schadstoffkonzentrationen Boden'!F83>0,'Schadstoffkonzentrationen Boden'!F83,"") ->  | G4: =IF('Schadstoffkonzentrationen Boden'!G83>0,'Schadstoffkonzentrationen Boden'!G83,"") ->  | H4: =IF('Schadstoffkonzentrationen Boden'!H83>0,'Schadstoffkonzentrationen Boden'!H83,"") ->  | I4: =IF('Schadstoffkonzentrationen Boden'!I83>0,'Schadstoffkonzentrationen Boden'!I83,"") ->  | J4: =IF('Schadstoffkonzentrationen Boden'!J83>0,'Schadstoffkonzentrationen Boden'!J83,"") ->  | K4: =IF('Schadstoffkonzentrationen Boden'!K83>0,'Schadstoffkonzentrationen Boden'!K83,"") -> 34 | L4: =IF('Schadstoffkonzentrationen Boden'!L83>0,'Schadstoffkonzentrationen Boden'!L83,"") -> 51 | M4: =IF('Schadstoffkonzentrationen Boden'!M83>0,'Schadstoffkonzentrationen Boden'!M83,"") -> 68 | N4: =IF('Schadstoffkonzentrationen Boden'!N83>0,'Schadstoffkonzentrationen Boden'!N83,"") -> 85 | O4: =IF('Schadstoffkonzentrationen Boden'!O83>0,'Schadstoffkonzentrationen Boden'!O83,"") -> 172.7 | P4: =IF('Schadstoffkonzentrationen Boden'!P83>0,'Schadstoffkonzentrationen Boden'!P83,"") -> 2566 | Q4: =IF('Schadstoffkonzentrationen Boden'!Q83>0,'Schadstoffkonzentrationen Boden'!Q83,"") -> 1574 | R4: =IF('Schadstoffkonzentrationen Boden'!R83>0,'Schadstoffkonzentrationen Boden'!R83,"") -> 193.6 | S4: =IF('Schadstoffkonzentrationen Boden'!S83>0,'Schadstoffkonzentrationen Boden'!S83,"") -> 1946 | T4: =IF('Schadstoffkonzentrationen Boden'!T83>0,'Schadstoffkonzentrationen Boden'!T83,"") -> 372 | U4: =IF('Schadstoffkonzentrationen Boden'!U83>0,'Schadstoffkonzentrationen Boden'!U83,"") -> 372
B5: =VALUE(B6) -> 18 | C5: =VALUE(C6) -> 16 | D5: =VALUE(D6) -> 14 | E5: =VALUE(E6) -> 13 | F5: =VALUE(F6) -> 12 | G5: =VALUE(G6) -> 10 | H5: =VALUE(H6) -> 10 | I5: =VALUE(I6) -> 9 | J5: =VALUE(J6) -> 8 | K5: =VALUE(K6) -> 7 | L5: =VALUE(L6) -> 6 | M5: =VALUE(M6) -> 4 | N5: =VALUE(N6) -> 3 | O5: =VALUE(O6) -> 5 | P5: =VALUE(P6) -> 2 | Q5: =VALUE(Q6) -> 16 | R5: =VALUE(R6) -> 1 | S5: =VALUE(S6) -> 14 | T5: =VALUE(T6) ->  | U5: =VALUE(U6) -> 
A6: n-Alkane | B6: =IF(SUM('Schadstoffkonzentrationen Boden'!B85:B90)>0,_xlfn.RANK.EQ('Schadstoffkonzentrationen Boden'!B91,'Schadstoffkonzentrationen Boden'!$B$91:$U$91),"") -> 18 | C6: =IF(SUM('Schadstoffkonzentrationen Boden'!C85:C90)>0,_xlfn.RANK.EQ('Schadstoffkonzentrationen Boden'!C91,'Schadstoffkonzentrationen Boden'!$B$91:$U$91),"") -> 16 | D6: =IF(SUM('Schadstoffkonzentrationen Boden'!D85:D90)>0,_xlfn.RANK.EQ('Schadstoffkonzentrationen Boden'!D91,'Schadstoffkonzentrationen Boden'!$B$91:$U$91),"") -> 14 | E6: =IF(SUM('Schadstoffkonzentrationen Boden'!E85:E90)>0,_xlfn.RANK.EQ('Schadstoffkonzentrationen Boden'!E91,'Schadstoffkonzentrationen Boden'!$B$91:$U$91),"") -> 13 | F6: =IF(SUM('Schadstoffkonzentrationen Boden'!F85:F90)>0,_xlfn.RANK.EQ('Schadstoffkonzentrationen Boden'!F91,'Schadstoffkonzentrationen Boden'!$B$91:$U$91),"") -> 12 | G6: =IF(SUM('Schadstoffkonzentrationen Boden'!G85:G90)>0,_xlfn.RANK.EQ('Schadstoffkonzentrationen Boden'!G91,'Schadstoffkonzentrationen Boden'!$B$91:$U$91),"") -> 10 | H6: =IF(SUM('Schadstoffkonzentrationen Boden'!H85:H90)>0,_xlfn.RANK.EQ('Schadstoffkonzentrationen Boden'!H91,'Schadstoffkonzentrationen Boden'!$B$91:$U$91),"") -> 10 | I6: =IF(SUM('Schadstoffkonzentrationen Boden'!I85:I90)>0,_xlfn.RANK.EQ('Schadstoffkonzentrationen Boden'!I91,'Schadstoffkonzentrationen Boden'!$B$91:$U$91),"") -> 9 | J6: =IF(SUM('Schadstoffkonzentrationen Boden'!J85:J90)>0,_xlfn.RANK.EQ('Schadstoffkonzentrationen Boden'!J91,'Schadstoffkonzentrationen Boden'!$B$91:$U$91),"") -> 8 | K6: =IF(SUM('Schadstoffkonzentrationen Boden'!K85:K90)>0,_xlfn.RANK.EQ('Schadstoffkonzentrationen Boden'!K91,'Schadstoffkonzentrationen Boden'!$B$91:$U$91),"") -> 7 | L6: =IF(SUM('Schadstoffkonzentrationen Boden'!L85:L90)>0,_xlfn.RANK.EQ('Schadstoffkonzentrationen Boden'!L91,'Schadstoffkonzentrationen Boden'!$B$91:$U$91),"") -> 6 | M6: =IF(SUM('Schadstoffkonzentrationen Boden'!M85:M90)>0,_xlfn.RANK.EQ('Schadstoffkonzentrationen Boden'!M91,'Schadstoffkonzentrationen Boden'!$B$91:$U$91),"") -> 4 | N6: =IF(SUM('Schadstoffkonzentrationen Boden'!N85:N90)>0,_xlfn.RANK.EQ('Schadstoffkonzentrationen Boden'!N91,'Schadstoffkonzentrationen Boden'!$B$91:$U$91),"") -> 3 | O6: =IF(SUM('Schadstoffkonzentrationen Boden'!O85:O90)>0,_xlfn.RANK.EQ('Schadstoffkonzentrationen Boden'!O91,'Schadstoffkonzentrationen Boden'!$B$91:$U$91),"") -> 5 | P6: =IF(SUM('Schadstoffkonzentrationen Boden'!P85:P90)>0,_xlfn.RANK.EQ('Schadstoffkonzentrationen Boden'!P91,'Schadstoffkonzentrationen Boden'!$B$91:$U$91),"") -> 2 | Q6: =IF(SUM('Schadstoffkonzentrationen Boden'!Q85:Q90)>0,_xlfn.RANK.EQ('Schadstoffkonzentrationen Boden'!Q91,'Schadstoffkonzentrationen Boden'!$B$91:$U$91),"") -> 16 | R6: =IF(SUM('Schadstoffkonzentrationen Boden'!R85:R90)>0,_xlfn.RANK.EQ('Schadstoffkonzentrationen Boden'!R91,'Schadstoffkonzentrationen Boden'!$B$91:$U$91),"") -> 1 | S6: =IF(SUM('Schadstoffkonzentrationen Boden'!S85:S90)>0,_xlfn.RANK.EQ('Schadstoffkonzentrationen Boden'!S91,'Schadstoffkonzentrationen Boden'!$B$91:$U$91),"") -> 14 | T6: =IF(SUM('Schadstoffkonzentrationen Boden'!T85:T90)>0,_xlfn.RANK.EQ('Schadstoffkonzentrationen Boden'!T91,'Schadstoffkonzentrationen Boden'!$B$91:$U$91),"") ->  | U6: =IF(SUM('Schadstoffkonzentrationen Boden'!U85:U90)>0,_xlfn.RANK.EQ('Schadstoffkonzentrationen Boden'!U91,'Schadstoffkonzentrationen Boden'!$B$91:$U$91),"") -> 
B7: ='Schadstoffkonzentrationen Boden'!B91 -> 1 | C7: ='Schadstoffkonzentrationen Boden'!C91 -> 2 | D7: ='Schadstoffkonzentrationen Boden'!D91 -> 3 | E7: ='Schadstoffkonzentrationen Boden'!E91 -> 4 | F7: ='Schadstoffkonzentrationen Boden'!F91 -> 5 | G7: ='Schadstoffkonzentrationen Boden'!G91 -> 7 | H7: ='Schadstoffkonzentrationen Boden'!H91 -> 7 | I7: ='Schadstoffkonzentrationen Boden'!I91 -> 8 | J7: ='Schadstoffkonzentrationen Boden'!J91 -> 9 | K7: ='Schadstoffkonzentrationen Boden'!K91 -> 12 | L7: ='Schadstoffkonzentrationen Boden'!L91 -> 18 | M7: ='Schadstoffkonzentrationen Boden'!M91 -> 24 | N7: ='Schadstoffkonzentrationen Boden'!N91 -> 30 | O7: ='Schadstoffkonzentrationen Boden'!O91 -> 22 | P7: ='Schadstoffkonzentrationen Boden'!P91 -> 33 | Q7: ='Schadstoffkonzentrationen Boden'!Q91 -> 2 | R7: ='Schadstoffkonzentrationen Boden'!R91 -> 34 | S7: ='Schadstoffkonzentrationen Boden'!S91 -> 3 | T7: ='Schadstoffkonzentrationen Boden'!T91 ->  | U7: ='Schadstoffkonzentrationen Boden'!U91 -> 
B8: =VALUE(B9) ->  | C8: =VALUE(C9) ->  | D8: =VALUE(D9) ->  | E8: =VALUE(E9) ->  | F8: =VALUE(F9) ->  | G8: =VALUE(G9) ->  | H8: =VALUE(H9) ->  | I8: =VALUE(I9) ->  | J8: =VALUE(J9) ->  | K8: =VALUE(K9) -> 4 | L8: =VALUE(L9) -> 3 | M8: =VALUE(M9) -> 2 | N8: =VALUE(N9) -> 1 | O8: =VALUE(O9) ->  | P8: =VALUE(P9) ->  | Q8: =VALUE(Q9) ->  | R8: =VALUE(R9) ->  | S8: =VALUE(S9) ->  | T8: =VALUE(T9) ->  | U8: =VALUE(U9) -> 
A9: Oxygenate | B9: =IF(SUM('Schadstoffkonzentrationen Boden'!B93:B95)>0,_xlfn.RANK.EQ('Schadstoffkonzentrationen Boden'!B94,'Schadstoffkonzentrationen Boden'!$B$95:$U$95),"") ->  | C9: =IF(SUM('Schadstoffkonzentrationen Boden'!C93:C95)>0,_xlfn.RANK.EQ('Schadstoffkonzentrationen Boden'!C94,'Schadstoffkonzentrationen Boden'!$B$95:$U$95),"") ->  | D9: =IF(SUM('Schadstoffkonzentrationen Boden'!D93:D95)>0,_xlfn.RANK.EQ('Schadstoffkonzentrationen Boden'!D94,'Schadstoffkonzentrationen Boden'!$B$95:$U$95),"") ->  | E9: =IF(SUM('Schadstoffkonzentrationen Boden'!E93:E95)>0,_xlfn.RANK.EQ('Schadstoffkonzentrationen Boden'!E94,'Schadstoffkonzentrationen Boden'!$B$95:$U$95),"") ->  | F9: =IF(SUM('Schadstoffkonzentrationen Boden'!F93:F95)>0,_xlfn.RANK.EQ('Schadstoffkonzentrationen Boden'!F94,'Schadstoffkonzentrationen Boden'!$B$95:$U$95),"") ->  | G9: =IF(SUM('Schadstoffkonzentrationen Boden'!G93:G95)>0,_xlfn.RANK.EQ('Schadstoffkonzentrationen Boden'!G94,'Schadstoffkonzentrationen Boden'!$B$95:$U$95),"") ->  | H9: =IF(SUM('Schadstoffkonzentrationen Boden'!H93:H95)>0,_xlfn.RANK.EQ('Schadstoffkonzentrationen Boden'!H94,'Schadstoffkonzentrationen Boden'!$B$95:$U$95),"") ->  | I9: =IF(SUM('Schadstoffkonzentrationen Boden'!I93:I95)>0,_xlfn.RANK.EQ('Schadstoffkonzentrationen Boden'!I94,'Schadstoffkonzentrationen Boden'!$B$95:$U$95),"") ->  | J9: =IF(SUM('Schadstoffkonzentrationen Boden'!J93:J95)>0,_xlfn.RANK.EQ('Schadstoffkonzentrationen Boden'!J94,'Schadstoffkonzentrationen Boden'!$B$95:$U$95),"") ->  | K9: =IF(SUM('Schadstoffkonzentrationen Boden'!K93:K95)>0,_xlfn.RANK.EQ('Schadstoffkonzentrationen Boden'!K94,'Schadstoffkonzentrationen Boden'!$B$95:$U$95),"") -> 4 | L9: =IF(SUM('Schadstoffkonzentrationen Boden'!L93:L95)>0,_xlfn.RANK.EQ('Schadstoffkonzentrationen Boden'!L94,'Schadstoffkonzentrationen Boden'!$B$95:$U$95),"") -> 3 | M9: =IF(SUM('Schadstoffkonzentrationen Boden'!M93:M95)>0,_xlfn.RANK.EQ('Schadstoffkonzentrationen Boden'!M94,'Schadstoffkonzentrationen Boden'!$B$95:$U$95),"") -> 2 | N9: =IF(SUM('Schadstoffkonzentrationen Boden'!N93:N95)>0,_xlfn.RANK.EQ('Schadstoffkonzentrationen Boden'!N94,'Schadstoffkonzentrationen Boden'!$B$95:$U$95),"") -> 1 | O9: =IF(SUM('Schadstoffkonzentrationen Boden'!O93:O95)>0,_xlfn.RANK.EQ('Schadstoffkonzentrationen Boden'!O94,'Schadstoffkonzentrationen Boden'!$B$95:$U$95),"") ->  | P9: =IF(SUM('Schadstoffkonzentrationen Boden'!P93:P95)>0,_xlfn.RANK.EQ('Schadstoffkonzentrationen Boden'!P94,'Schadstoffkonzentrationen Boden'!$B$95:$U$95),"") ->  | Q9: =IF(SUM('Schadstoffkonzentrationen Boden'!Q93:Q95)>0,_xlfn.RANK.EQ('Schadstoffkonzentrationen Boden'!Q94,'Schadstoffkonzentrationen Boden'!$B$95:$U$95),"") ->  | R9: =IF(SUM('Schadstoffkonzentrationen Boden'!R93:R95)>0,_xlfn.RANK.EQ('Schadstoffkonzentrationen Boden'!R94,'Schadstoffkonzentrationen Boden'!$B$95:$U$95),"") ->  | S9: =IF(SUM('Schadstoffkonzentrationen Boden'!S93:S95)>0,_xlfn.RANK.EQ('Schadstoffkonzentrationen Boden'!S94,'Schadstoffkonzentrationen Boden'!$B$95:$U$95),"") ->  | T9: =IF(SUM('Schadstoffkonzentrationen Boden'!T93:T95)>0,_xlfn.RANK.EQ('Schadstoffkonzentrationen Boden'!T94,'Schadstoffkonzentrationen Boden'!$B$95:$U$95),"") ->  | U9: =IF(SUM('Schadstoffkonzentrationen Boden'!U93:U95)>0,_xlfn.RANK.EQ('Schadstoffkonzentrationen Boden'!U94,'Schadstoffkonzentrationen Boden'!$B$95:$U$95),"") -> 
B10: ='Schadstoffkonzentrationen Boden'!B96 ->  | C10: ='Schadstoffkonzentrationen Boden'!C96 ->  | D10: ='Schadstoffkonzentrationen Boden'!D96 ->  | E10: ='Schadstoffkonzentrationen Boden'!E96 ->  | F10: ='Schadstoffkonzentrationen Boden'!F96 ->  | G10: ='Schadstoffkonzentrationen Boden'!G96 ->  | H10: ='Schadstoffkonzentrationen Boden'!H96 ->  | I10: ='Schadstoffkonzentrationen Boden'!I96 ->  | J10: ='Schadstoffkonzentrationen Boden'!J96 ->  | K10: ='Schadstoffkonzentrationen Boden'!K96 -> 6 | L10: ='Schadstoffkonzentrationen Boden'!L96 -> 9 | M10: ='Schadstoffkonzentrationen Boden'!M96 -> 12 | N10: ='Schadstoffkonzentrationen Boden'!N96 -> 15 | O10: ='Schadstoffkonzentrationen Boden'!O96 ->  | P10: ='Schadstoffkonzentrationen Boden'!P96 ->  | Q10: ='Schadstoffkonzentrationen Boden'!Q96 ->  | R10: ='Schadstoffkonzentrationen Boden'!R96 ->  | S10: ='Schadstoffkonzentrationen Boden'!S96 ->  | T10: ='Schadstoffkonzentrationen Boden'!T96 ->  | U10: ='Schadstoffkonzentrationen Boden'!U96 -> 

Sheet Schadstoffkonzentrationen GW (hidden)
A3: Schadstoffkonzentrationen im Grundwasser (gelöst) [µg/L] | I3: Korrekturfaktor | K3: 10 | Z3: =Schadstoffbelastung!$I$6*Schadstoffbelastung!$I$9*Bodencharakterisierung!$D$8/1000/1000 -> 0.00033 | AA3: =Schadstoffbelastung!$I$6*Schadstoffbelastung!$I$9*Bodencharakterisierung!$D$11*Bodencharakterisierung!$D$9/1000/1000 -> 1.515e-05
A5: Messstelle Nr. | B5: 1 | C5: 2 | D5: 3 | E5: 4 | F5: 5 | G5: 6 | H5: 7 | I5: 8 | J5: 9 | K5: 10 | L5: 11 | M5: 12 | N5: 13 | O5: 14 | P5: 15 | Q5: 16 | R5: 17 | S5: 18 | T5: 19 | U5: 20 | V5: Summe Inventar [kg] | Y5: Mittlere Konz. (MW) [µg/L] | Z5: Inventar (gelöst) [kg] | AA5: Inventar (sorbiert) [kg]
A6: Bezeichnung
A7: (Mono)aromatische Kohlenwasserstoffe (AKW)
A8: Benzol | C8: 8 | D8: 24 | F8: 18 | H8: 18 | I8: 18 | J8: 18 | K8: 18 | L8: 18 | M8: 18 | N8: 18 | O8: 18 | P8: 3 | Q8: 18 | R8: 18 | S8: 18 | T8: 18 | U8: 18 | V8: =(Z8+AA8)*$K$3 -> 0.2603258824 | Y8: =IFERROR(AVERAGE($B8:$U8),0) -> 16.88235294 | Z8: =$Z$3*Y8 -> 0.005571176471 | AA8: =$AA$3*Y8*Stoffdatenbank!$J19 -> 0.02046141176
A9: Toluol | B9: 2.4 | C9: 14 | D9: 61 | E9: 4.7 | F9: 25 | H9: 25 | I9: 25 | J9: 25 | K9: 25 | L9: 25 | M9: 25 | N9: 25 | O9: 25 | P9: 3 | Q9: 25 | R9: 25 | S9: 25 | T9: 25 | U9: 25 | V9: 1.116375 | Y9: 22.9 | Z9: 0.007557 | AA9: =$AA$3*Y9*Stoffdatenbank!$J20 -> 0.1040805
A10: Ethylbenzol | B10: 95 | C10: 39 | D10: 21 | E10: 12 | F10: 33 | G10: 14 | H10: 33 | I10: 33 | J10: 33 | K10: 33 | L10: 33 | M10: 33 | N10: 33 | O10: 33 | P10: 3 | Q10: 33 | R10: 33 | S10: 33 | T10: 33 | U10: 33 | V10: 5.489385 | Y10: 32.3 | Z10: 0.010659 | AA10: =$AA$3*Y10*Stoffdatenbank!$J21 -> 0.5382795
A11: o-Xylol | B11: 62 | C11: 24 | D11: 74 | E11: 55 | F11: 2 | G11: 37 | H11: 2 | I11: 2 | J11: 2 | K11: 2 | L11: 2 | M11: 2 | N11: 2 | O11: 2 | P11: 3 | Q11: 2 | R11: 2 | S11: 2 | T11: 2 | U11: 2 | V11: 1.82598675 | Y11: 14.15 | Z11: 0.0046695 | AA11: =$AA$3*Y11*Stoffdatenbank!$J22 -> 0.177929175
A12: m-Xylol | B12: 4.9 | C12: 28 | D12: 11 | E12: 6.8 | F12: 27 | H12: 27 | I12: 27 | J12: 27 | K12: 27000 | L12: 27000 | M12: 27000 | N12: 27000 | O12: 27000 | P12: 27000 | Q12: 27000 | R12: 27000 | S12: 27 | T12: 27 | U12: 27 | V12: 1727.299962 | Y12: 11381.03684 | Z12: 3.755742158 | AA12: =$AA$3*Y12*Stoffdatenbank!$J23 -> 168.974254
A13: p-Xylol | C13: 13 | D13: 38 | F13: 3 | G13: 9.4 | H13: 3 | I13: 3 | J13: 3 | K13: 3 | L13: 3 | M13: 3 | N13: 3 | O13: 3 | P13: 3 | Q13: 3 | R13: 3 | S13: 3 | T13: 3 | U13: 3 | V13: 0.799986 | Y13: 5.855555556 | Z13: 0.001932333333 | AA13: =$AA$3*Y13*Stoffdatenbank!$J24 -> 0.07806626667
A14: n-Propylbenzol | C14: 61 | D14: 19 | F14: 13 | H14: 13 | I14: 13 | J14: 13 | K14: 13 | L14: 13 | M14: 13 | N14: 13 | O14: 13 | P14: 3 | Q14: 13 | R14: 13 | S14: 13 | T14: 13 | U14: 13 | V14: 2.365826471 | Y14: 15.58823529 | Z14: 0.005144117647 | AA14: =$AA$3*Y14*Stoffdatenbank!$J25 -> 0.2314385294
A15: Isopropylbenzol | C15: 29 | D15: 99 | F15: 5 | G15: 4.5 | H15: 5 | I15: 5 | J15: 5 | K15: 5 | L15: 5 | M15: 5 | N15: 5 | O15: 5 | P15: 3 | Q15: 5 | R15: 5 | S15: 5 | T15: 5 | U15: 5 | V15: 1.6635225 | Y15: 11.41666667 | Z15: 0.0037675 | AA15: =$AA$3*Y15*Stoffdatenbank!$J26 -> 0.16258475
A16: o-Ethyltoluol | B16: 2.6 | C16: 91 | D16: 23 | E16: 2.2 | F16: 14 | G16: 12 | H16: 14 | I16: 14 | J16: 14 | K16: 14 | L16: 14 | M16: 14 | N16: 14 | O16: 14 | P16: 3 | Q16: 14 | R16: 14 | S16: 14 | T16: 14 | U16: 14 | V16: 2.02802265 | Y16: 16.49 | Z16: 0.0054417 | AA16: =$AA$3*Y16*Stoffdatenbank!$J27 -> 0.197360565
A17: m-Ethyltoluol | P17: 3 | V17: =(Z17+AA17)*$K$3 -> 0.35532 | Y17: =IFERROR(AVERAGE($B17:$U17),0) -> 3 | Z17: =$Z$3*Y17 -> 0.00099 | AA17: =$AA$3*Y17*Stoffdatenbank!$J28 -> 0.034542
A18: p-Ethyltoluol | F18: 5.4 | H18: 5.4 | I18: 5.4 | J18: 5.4 | K18: 5.4 | L18: 5.4 | M18: 5.4 | N18: 5.4 | O18: 5.4 | P18: 33 | Q18: 5.4 | R18: 5.4 | S18: 5.4 | T18: 5.4 | U18: 5.4 | V18: =(Z18+AA18)*$K$3 -> 1.011066 | Y18: =IFERROR(AVERAGE($B18:$U18),0) -> 7.24 | Z18: =$Z$3*Y18 -> 0.0023892 | AA18: =$AA$3*Y18*Stoffdatenbank!$J29 -> 0.0987174
A19: 1,2-Diethylbenzol | C19: 13 | F19: 37 | H19: 37 | I19: 37 | J19: 37 | K19: 37 | L19: 37 | M19: 37 | N19: 37 | O19: 37 | P19: 3 | Q19: 37 | R19: 37 | S19: 37 | T19: 37 | U19: 37 | V19: 2.63829375 | Y19: 33.375 | Z19: 0.01101375 | AA19: =$AA$3*Y19*Stoffdatenbank!$J30 -> 0.252815625
A20: 1,3-Diethylbenzol | C20: 39 | D20: 7.9 | F20: 12 | H20: 12 | I20: 12 | J20: 12 | K20: 12 | L20: 12 | M20: 12 | N20: 12 | O20: 12 | P20: 3 | Q20: 12 | R20: 12 | S20: 12 | T20: 12 | U20: 12 | V20: 0.8578851176 | Y20: 12.81764706 | Z20: 0.004229823529 | AA20: =$AA$3*Y20*Stoffdatenbank!$J31 -> 0.08155868824
A21: 1,4-Diethylbenzol | C21: 37 | D21: 96 | F21: 71 | G21: 13 | H21: 71 | I21: 71 | J21: 71 | K21: 71 | L21: 71 | M21: 71 | N21: 71 | O21: 71 | P21: 3 | Q21: 71 | R21: 71 | S21: 71 | T21: 71 | U21: 71 | V21: 4.634865 | Y21: 63.5 | Z21: 0.020955 | AA21: =$AA$3*Y21*Stoffdatenbank!$J32 -> 0.4425315
A22: 1,2,3-Trimethylbenzol | B22: 3.2 | C22: 92 | D22: 3 | E22: 2.7 | F22: 17 | G22: 76 | H22: 17 | I22: 17 | J22: 17 | K22: 17 | L22: 17 | M22: 17 | N22: 17 | O22: 17 | P22: 5 | Q22: 17 | R22: 17 | S22: 17 | T22: 17 | U22: 17 | V22: 2.136766125 | Y22: 20.995 | Z22: 0.00692835 | AA22: =$AA$3*Y22*Stoffdatenbank!$J33 -> 0.2067482625
A23: 1,2,4-Trimethylbenzol | C23: 23 | D23: 67 | F23: 53 | G23: 2.7 | H23: 53 | I23: 53 | J23: 53 | K23: 53 | L23: 53 | M23: 53 | N23: 53 | O23: 53 | P23: 3 | Q23: 53 | R23: 53 | S23: 53 | T23: 53 | U23: 53 | V23: 4.736495417 | Y23: 46.53888889 | Z23: 0.01535783333 | AA23: =$AA$3*Y23*Stoffdatenbank!$J34 -> 0.4582917083
A24: 1,3,5-Trimethylbenzol | C24: 23 | D24: 67 | F24: 53 | G24: 2.7 | H24: 53 | I24: 53 | J24: 53 | K24: 53 | L24: 53 | M24: 53 | N24: 53 | O24: 53 | P24: 8 | Q24: 53 | R24: 53 | S24: 53 | T24: 53 | U24: 53 | V24: 4.90662075 | Y24: 46.81666667 | Z24: 0.0154495 | AA24: =$AA$3*Y24*Stoffdatenbank!$J35 -> 0.475212575
A25: BTEX | B25: =IF(SUM(B8:B13)>0,SUM(B8:B13),"") -> 164.3 | C25: =IF(SUM(C8:C13)>0,SUM(C8:C13),"") -> 126 | D25: 229 | E25: 78.5 | F25: 108 | G25: 60.4 | H25: 108 | I25: 108 | J25: 108 | K25: 27081 | L25: 27081 | M25: 27081 | N25: 27081 | O25: 27081 | P25: 27015 | Q25: 27081 | R25: 27081 | S25: 108 | T25: 108 | U25: =IF(SUM(U8:U13)>0,SUM(U8:U13),"") -> 108 | V25: =SUM(V8:V13) -> 1736.79202
A26: AKW | B26: =IF(SUM(B8:B24)>0,SUM(B8:B24),"") -> 170.1 | C26: =IF(SUM(C8:C24)>0,SUM(C8:C24),"") -> 534 | D26: 610.9 | E26: 83.4 | F26: 388.4 | G26: 171.3 | H26: 388.4 | I26: 388.4 | J26: 388.4 | K26: 27361.4 | L26: 27361.4 | M26: 27361.4 | N26: 27361.4 | O26: 27361.4 | P26: 27085 | Q26: 27361.4 | R26: 27361.4 | S26: 388.4 | T26: 388.4 | U26: 388.4 | V26: =SUM(V8:V24) -> 1764.126704
A27: =Stoffdatenbank!$A$36 -> n-Alkane | B27: =Stoffdatenbank!$A$36 -> n-Alkane | C27: =Stoffdatenbank!$A$36 -> n-Alkane | D27: =Stoffdatenbank!$A$36 -> n-Alkane | E27: =Stoffdatenbank!$A$36 -> n-Alkane | F27: =Stoffdatenbank!$A$36 -> n-Alkane | G27: =Stoffdatenbank!$A$36 -> n-Alkane | H27: =Stoffdatenbank!$A$36 -> n-Alkane | I27: =Stoffdatenbank!$A$36 -> n-Alkane | J27: =Stoffdatenbank!$A$36 -> n-Alkane | K27: =Stoffdatenbank!$A$36 -> n-Alkane | L27: =Stoffdatenbank!$A$36 -> n-Alkane | M27: =Stoffdatenbank!$A$36 -> n-Alkane | N27: =Stoffdatenbank!$A$36 -> n-Alkane | O27: =Stoffdatenbank!$A$36 -> n-Alkane | P27: =Stoffdatenbank!$A$36 -> n-Alkane | Q27: =Stoffdatenbank!$A$36 -> n-Alkane | R27: =Stoffdatenbank!$A$36 -> n-Alkane | S27: =Stoffdatenbank!$A$36 -> n-Alkane | T27: =Stoffdatenbank!$A$36 -> n-Alkane | U27: =Stoffdatenbank!$A$36 -> n-Alkane | V27: =Stoffdatenbank!$A$36 -> n-Alkane
A28: =Stoffdatenbank!$A$37 -> n-Pentan | Q28: 2 | V28: =(Z28+AA28)*$K$3 -> 1.59735 | Y28: =IFERROR(AVERAGE($B28:$U28),0) -> 2 | Z28: =$Z$3*Y28 -> 0.00066 | AA28: =$AA$3*Y28*Stoffdatenbank!$J39 -> 0.159075
A29: =Stoffdatenbank!$A$38 -> n-Hexan | Q29: 4 | V29: 10.54548 | Y29: 4 | Z29: 0.00132 | AA29: =$AA$3*Y29*Stoffdatenbank!$J40 -> 1.053228
A30: =Stoffdatenbank!$A$39 -> n-Heptan | Q30: 44 | V30: 183.72684 | Y30: 44 | Z30: 0.01452 | AA30: =$AA$3*Y30*Stoffdatenbank!$J41 -> 18.358164
A31: =Stoffdatenbank!$A$40 -> n-Octan | Q31: 6 | V31: 198.89082 | Y31: 6 | Z31: 0.00198 | AA31: =$AA$3*Y31*Stoffdatenbank!$J42 -> 19.887102
A32: =Stoffdatenbank!$A$41 -> n-Nonan | Q32: 6 | V32: 0.0198 | Y32: 6 | Z32: 0.00198 | AA32: =$AA$3*Y32*Stoffdatenbank!$J43 -> 0
A33: =Stoffdatenbank!$A$42 -> n-Decan | Q33: 6 | V33: 0.029799 | Y33: 6 | Z33: 0.00198 | AA33: =$AA$3*Y33*Stoffdatenbank!$J44 -> 0.0009999
A34: =Stoffdatenbank!$A$36 -> n-Alkane | B34: =IF(SUM(B28:B33)>0,SUM(B28:B33),"") ->  | C34: =IF(SUM(C28:C33)>0,SUM(C28:C33),"") ->  | H34: =IF(SUM(H28:H33)>0,SUM(H28:H33),"") ->  | Q34: 68 | T34: =IF(SUM(T28:T33)>0,SUM(T28:T33),"") ->  | V34: =SUM(V28:V33) -> 394.810089
A35: Oxigenate
A36: MTBE (Methyl-tert-butylether) | Q36: 5 | T36: 10000 | V36: =(Z36+AA36)*$K$3 -> 16.50825 | Y36: =IFERROR(AVERAGE($B36:$U36),0) -> 5002.5 | Z36: =$Z$3*Y36 -> 1.650825 | AA36: =$AA$3*Y36*Stoffdatenbank!$J47 -> 0
A37: ETBE (Ethyl-tert-butylether) | Q37: 55 | V37: 0.1815 | Y37: 55 | Z37: 0.01815 | AA37: =$AA$3*Y37*Stoffdatenbank!$J48 -> 0
A38: TBA (tert-Butylalkohol) | Q38: 1 | V38: 0.0033 | Y38: 1 | Z38: 0.00033 | AA38: =$AA$3*Y38*Stoffdatenbank!$J49 -> 0
A39: Oxigenate | B39: =IF(SUM(B36:B38)>0,SUM(B36:B38),"") ->  | Q39: 61 | T39: =IF(SUM(T36:T38)>0,SUM(T36:T38),"") -> 10000 | U39: =IF(SUM(U36:U38)>0,SUM(U36:U38),"") ->  | V39: =SUM(V36:V38) -> 16.69305
A41: [mg/m²]
O42: [mg/m²]

Sheet Bodencharakterisierung (hidden)
A2: Parameter | C2: Einheit | D2: Hauptbodenart | E2: Nebenbodenart
A4: Relativer Anteil (geschätzt) | C4: % | D4: 97 | E4: =100-D4 -> 3 | I4: =N4 -> Grobsand | L4: Parameter | M4: Einheit | N4: Grobsand | O4: Mittelsand | P4: Feinsand | Q4: Schluff | R4: Ton
A5: Wassersättigung (ungesättigter Boden) | B5: SW | C5: - | D5: 0.26 | E5: 0.26 | I5: =O4 -> Mittelsand | L5: Wassersättigung (ungesättigter Boden) | M5: - | N5: 0.26 | O5: 0.26 | P5: 0.26 | Q5: 0.27 | R5: 0.29
A6: Durchlässigkeitsbeiwert | B6: kf | C6: m/s | D6: 0.0002 | E6: 0.0002 | G6: =LOG10(lblMainSoilHydrConduct) -> -3.698970004 | I6: =P4 -> Feinsand | L6: Durchlässigkeitsbeiwert (kf) | M6: m/s | N6: 0.0002 | O6: 0.000275 | P6: 1e-05 | Q6: 1e-07 | R6: 1e-11
A7: Nutzbare Porosität | B7: neff | C7: - | D7: 0.2 | E7: 0.2 | G7: =LOG10(lbl2ndSoilHydrConduct) -> -3.698970004 | I7: =Q4 -> Schluff | J7: Injizierbarkeit von Schluffböden ist nicht gegeben - injizierte Lösung verteilt sich nicht gleichmäßig und Desorption läuft nur viel langsamer ab. | L7: Nutzbare Porosität (neff) | M7: - | N7: 0.2 | O7: 0.125 | P7: 0.1 | Q7: 0.075 | R7: 0.035
A8: Gesamtporosität (Hohlraumvolumen) | B8: n | C8: - | D8: 0.33 | E8: 0.33 | G8: =lblMainSoilHydrConduct/lbl2ndSoilHydrConduct -> 1 | I8: =R4 -> Ton | J8: Injizierbarkeit von Tonböden ist nicht gegeben - injizierte Lösung verteilt sich nicht gleichmäßig und Desorption läuft nur viel langsamer ab. | L8: Gesamtporosität (Hohlraumvolumen) | M8: - | N8: 0.33 | O8: 0.33 | P8: 0.33 | Q8: 0.34 | R8: 0.35
A9: Organischer Kohlenstoffgehalt | B9: fOC | C9: - | D9: 0.01 | E9: 0.01 | G9: =LOG(lblMainSoilHydrConduct)/LOG(10) -> -3.698970004 | L9: Organische Kohlenstoffgehalt | M9: - | N9: 0.01 | O9: 0.01 | P9: 0.01 | Q9: 0.01 | R9: 0.01
A10: Korndichte | B10: ρs | C10: kg/m³ | D10: 2650 | E10: 2650 | G10: =G6-G7 -> 0 | L10: Korndichte | M10: kg/m³ | N10: 2650 | O10: 2650 | P10: 2650 | Q10: 2690 | R10: 2700
A11: Lagerungsdichte | B11: d | C11: kg/L | D11: 1.515 | E11: 1.515 | G11: =G7-G6 -> 0 | L11: Schüttdichte | M11: kg/dm³ | N11: 1.515 | O11: 1.515 | P11: 1.515 | Q11: 1.43 | R11: 1.64
A12: Anteil (Bodenkorn) | B12: nM | C12: kg/m³ | D12: 1015.05 | E12: 1015.05 | G12: =(LOG(lblMainSoilHydrConduct)-LOG(lbl2ndSoilHydrConduct))/LOG(10) -> 0 | L12: Anteil (Bodenkorn) | M12: kg/m³ | N12: =1000*(1-N8)*N11 -> 1015.05 | O12: =1000*(1-O8)*O11 -> 1015.05 | P12: =1000*(1-P8)*P11 -> 1015.05 | Q12: =1000*(1-Q8)*Q11 -> 943.8 | R12: =1000*(1-R8)*R11 -> 1066
A13: Mittlerer Kornradius | B13: d50 | C13: m | D13: 0.001315 | E13: 0.001315 | L13: Mittlerer Kornradius (d50) | M13: m | N13: 0.001315 | O13: 0.000415 | P13: 0.0001315 | Q13: 3.25e-05 | R13: 2e-06
A14: Tortouistät in der Wasserphase | B14: τw | C14: - | D14: 5 | E14: 5 | L14: Tortuoistät in der Wasserphase (τw) | M14: - | N14: =1/N7 -> 5 | O14: =1/O7 -> 8 | P14: =1/P7 -> 10 | Q14: =1/Q7 -> 13.33333333 | R14: =1/R7 -> 28.57142857
A15: Wärmeleitfähigkeit | B15: λ | C15: W/(m·K) | D15: 3.72 | E15: 3.72 | L15: Wärmeleitfähigkeit (λ) | M15: W/(m·K) | N15: 3.72 | O15: 3.34 | P15: 2.75 | Q15: 1.5 | R15: 1.5
A16: Temperaturleitfähigkeit | B16: α | C16: m²/s | D16: 0.001488 | E16: 0.001488 | L16: Temperaturleitfähigkeit (α) | M16: m²/s | N16: =N15/N18 -> 0.001488 | O16: =O15/O18 -> 0.001336 | P16: =P15/P18 -> 0.0011 | Q16: =Q15/Q18 -> 0.000625 | R16: =R15/R18 -> 0.000625
A17: Untergrundtemperatur | B17: T0 | C17: K | D17: 283.15 | E17: 283.15 | L17: Untergrundtemperatur (T0) | M17: K | N17: 283.15 | O17: 283.15 | P17: 283.15 | Q17: 283.15 | R17: 283.15
A18: Spezifische Wärmekapazität (Bodenkorn) | B18: cM | C18: kJ/(kg·K) | D18: 2500 | E18: 2500 | L18: Spezifische Wärmekapazität | M18: kJ/(kg·K) | N18: 2500 | O18: 2500 | P18: 2500 | Q18: 2400 | R18: 2400

Sheet Grundwassercharakterisierung (hidden)
A2: Parameter | B2: Einheit | C2: Wert
A3: Mittlerer hydraulischer Gradient (I) | B3: % | C3: 0.1
A4: Grundwasserabstandsgeschwindigkeit (va) | B4: m/d | C4: =Bodencharakterisierung!D6*(Grundwassercharakterisierung!C3/100)/Bodencharakterisierung!D7*3600*24 -> 0.0864
A5: Redoxmilieu (charakteristische Mittelwerte)
A6: pH-Wert | B6: -- | C6: 7 | F6: 7
A7: Redoxspannung (korr.) | B7: mV | C7: 200 | F7: 200
A8: Temperatur | B8: °C | C8: 10 | F8: 10
A9: Gelöster Sauerstoff | B9: mg/L | C9: 3 | F9: 3
A10: Nitrat | B10: mg/L | C10: 20 | F10: 20
A11: Mangan (gelöst) | B11: mg/L | C11: 1 | F11: 0
A12: Eisen (gelöst) | B12: mg/L | C12: 1 | F12: 0
A13: Sulfat | B13: mg/L | C13: 200 | F13: 200
A14: Methan | B14: mg/L | C14: 0 | F14: 0
A15: DOC | B15: mg/L | C15: 2 | F15: 2

Sheet Sanierungsdesign (hidden)
A2: Parameter | B2: Einheit | C2: Wert | J2: Default | K2: Stöchiometrische Abbau-Faktoren [g TEA / g Schadstoff]
A3: Sanierungszielwert
A4: LCKW | B4: µg/L | C4: 100 | J4: 100
